Workbook

Sheet 資料勿動 (hidden)
A1: BillToCode | B1: BillToShortName | C1: 第一組 | D1: 第二組 | E1: 部門名稱 | F1: 區 | G1: 區1 | H1: BUYING_GROUP | I1: BUYING_GROUP-1 | J1: SalesChannelName | K1: SalesAR | L1: ARSalesChannel | M1: =SUM(K:K) -> 2604938770
A2: TW002512001B | B2: ONETIMECUSTOMER | G2: ETC | H2: ETC | I2: ETC_TT | J2: TW002512001B | K2: =VLOOKUP(A2,[3]工作表4!$A$2:$F$455,6,0) -> 243395 | L2: ETC | M2: 2604938764
A3: TW006291001B | B3: ONETIMECUSTOMER | G3: ETC | H3: ETC | I3: ETC_TT | J3: TW006291001B | K3: =VLOOKUP(A3,[3]工作表4!$A$2:$F$455,6,0) -> 0 | M3: =M1-M2 -> 6
A4: TW002605001B | B4: =VLOOKUP(A4,'[2]Bill+Ship to Code (Active) 12'!$B$1:$D$3073,3,0) -> ONE TIME SERVICE FOR TYPE 2 | G4: ETC | H4: ETC | I4: ETC_TT | J4: TW002605001B | K4: =VLOOKUP(A4,[3]工作表4!$A$2:$F$455,6,0) -> 3747944 | L4: SVC
A5: TW003659001B | B5: =VLOOKUP(A5,'[2]Bill+Ship to Code (Active) 12'!$B$1:$D$3073,3,0) -> ONE TIME SERVICE E-INVOICE FOR TYPE2 | G5: ETC | H5: ETC | I5: ETC_TT | J5: TW003659001B | K5: =VLOOKUP(A5,[3]工作表4!$A$2:$F$455,6,0) -> 253990 | L5: SVC
A6: TW005429001B | B6: =VLOOKUP(A6,'[2]Bill+Ship to Code (Active) 12'!$B$1:$D$3073,3,0) -> One time_SVC | G6: SVC | H6: SVC | I6: SVC | J6: TW005429001B | K6: =VLOOKUP(A6,[3]工作表4!$A$2:$F$455,6,0) -> 1918086 | L6: SVC
A7: TW005433001B | G7: ETC | H7: ETC | I7: ETC_TT | J7: TW005433001B | K7: =VLOOKUP(A7,[3]工作表4!$A$2:$F$455,6,0) -> 4271086 | L7: ETC
A8: TW004851001B | B8: 億電通國際 | G8: SVC | H8: SVC | I8: SVC | J8: TW004851001B | K8: =VLOOKUP(A8,[3]工作表4!$A$2:$F$455,6,0) -> 678371 | L8: SVC
A9: CN000116066B | G9: ETC | H9: ETC | I9: ETC_TT | J9: CN000116066B | L9: ETC
A10: KR000001066B | B10: LGEHQ | G10: ETC | H10: ETC | I10: ETC_TT | J10: KR000001066B | K10: =VLOOKUP(A10,[3]工作表4!$A$2:$F$455,6,0) -> 2271036 | L10: ETC
A11: PH000001009B | B11: LGEPH | G11: ETC | H11: ETC | I11: ETC_TT | J11: PH000001009B
A12: VN007883040B | B12: LGEVH | G12: ETC | H12: ETC | I12: ETC_TT | J12: VN007883040B
A13: ZA000001060B | B13: LGESA | G13: ETC | H13: ETC | I13: ETC_TT | J13: ZA000001060B | L13: ETC
A14: MX011038033B | B14: LGEMN | G14: ETC | H14: ETC | I14: ETC_TT | J14: MX011038033B | L14: ETC
A15: CN000135060B | B15: LGEPN | G15: ETC | H15: ETC | I15: ETC_TT | J15: CN000135060B | L15: ETC
A16: SG001062061B | G16: ETC | H16: ETC | I16: ETC_TT | J16: SG001062061B | K16: =VLOOKUP(A16,[3]工作表4!$A$2:$F$455,6,0) -> 0
A17: TW002070001B | B17: 來福電器商行 | C17: 19600401 | D17: 08026783 | E17: 高屏營銷處 | F17: GWB | G17: 高屏 | H17: DEALER_TT | I17: DLC_TT | J17: TW002070001B | K17: =VLOOKUP(A17,[3]工作表4!$A$2:$F$455,6,0) -> 124201 | L17: 高屏營銷處
A18: TW002073001B | B18: 貴櫻音響 | C18: 19660906 | D18: 95987415 | E18: 高屏營銷處 | F18: GWB | G18: 高屏 | H18: DEALER_TT | I18: DLC_TT
A19: TW002076001B | B19: 億興電業行 | C19: 19640715 | D19: 70940630 | E19: 高屏營銷處 | F19: GWB | G19: 高屏 | H19: DEALER_TT | I19: DLC_TT | J19: TW002076001B | K19: =VLOOKUP(A19,[3]工作表4!$A$2:$F$455,6,0) -> 111422 | L19: 高屏營銷處
A20: TW002077001B | B20: 信一電器行 | C20: 19520302 | D20: 91730759 | E20: 高屏營銷處 | F20: GWB | G20: 高屏 | H20: DEALER_TT | I20: DLC_TT | J20: TW002077001B | K20: =VLOOKUP(A20,[3]工作表4!$A$2:$F$455,6,0) -> 59594 | L20: 高屏營銷處
A21: TW002079001B | B21: 立陞電器 | C21: 19600710 | D21: 23956174 | E21: 高屏營銷處 | F21: GWB | G21: 高屏 | H21: DEALER_TT | I21: DLC_TT | J21: TW002079001B | K21: =VLOOKUP(A21,[3]工作表4!$A$2:$F$455,6,0) -> 33508 | L21: 高屏營銷處
A22: TW002083001B | B22: 路得企業有限公司 | C22: 19600503 | D22: 84672419 | E22: 高屏營銷處 | F22: GWB | G22: 高屏 | H22: DEALER_TT | I22: SPD_TT | J22: TW002083001B | K22: =VLOOKUP(A22,[3]工作表4!$A$2:$F$455,6,0) -> 197634 | L22: 高屏營銷處
A23: TW002084001B | B23: 新進發企業行 | C23: 19520414 | D23: 90802950 | E23: 高屏營銷處 | F23: GWB | G23: 高屏 | H23: DEALER_TT | I23: DLC_TT
A24: TW002085001B | B24: 皇昇電器行 | C24: 19600320 | D24: 08069071 | E24: 高屏營銷處 | F24: GWB | G24: 高屏 | H24: DEALER_TT | I24: DLC_TT
A25: TW002090001B | B25: 慶旺電器有限公司 | C25: hw7498625 | D25: hw16826605 | E25: 高屏營銷處 | F25: GWB | G25: 高屏 | H25: DEALER_TT | I25: DLC_TT | J25: TW002090001B | K25: =VLOOKUP(A25,[3]工作表4!$A$2:$F$455,6,0) -> 29797 | L25: 高屏營銷處
A26: TW002091001B | B26: 人友電器行 | C26: 19601028 | D26: 77003547 | E26: 高屏營銷處 | F26: GWB | G26: 高屏 | H26: DEALER_TT | I26: DLC_TT | J26: TW002091001B | K26: =VLOOKUP(A26,[3]工作表4!$A$2:$F$455,6,0) -> 0 | L26: 高屏營銷處
A27: TW002093001B | B27: 鴻嘉電化商行 | C27: 19480106 | D27: 06696505 | E27: 高屏營銷處 | F27: GWB | G27: 高屏 | H27: DEALER_TT | I27: DCS_TT | J27: TW002093001B | K27: =VLOOKUP(A27,[3]工作表4!$A$2:$F$455,6,0) -> 549858 | L27: 高屏營銷處
A28: TW002094001B | B28: 力利企業有限公司 | C28: 19660912 | D28: 16683445 | E28: 高屏營銷處 | F28: GWB | G28: 高屏 | H28: DEALER_TT | I28: DLC_TT | J28: TW002094001B | K28: =VLOOKUP(A28,[3]工作表4!$A$2:$F$455,6,0) -> 59751 | L28: 高屏營銷處
A29: TW002099001B | B29: 淙勝電器有限公司 | C29: 19580807 | D29: 16476213 | E29: 高屏營銷處 | F29: GWB | G29: 高屏 | H29: DEALER_TT | I29: DLC_TT | J29: TW002099001B | L29: 高屏營銷處
A30: TW002104001B | B30: 三豐電器行 | C30: 19681110 | D30: 19661607 | E30: 高屏營銷處 | F30: GWB | G30: 高屏 | H30: DEALER_TT | I30: DLC_TT | J30: TW002104001B | K30: =VLOOKUP(A30,[3]工作表4!$A$2:$F$455,6,0) -> 97153 | L30: 高屏營銷處
A31: TW002105001B | B31: 上眾電器有限公司 | C31: 19600908 | D31: 97408406 | E31: 高屏營銷處 | F31: GWB | G31: 高屏 | H31: DEALER_TT | I31: DLC_TT | J31: TW002105001B | K31: =VLOOKUP(A31,[3]工作表4!$A$2:$F$455,6,0) -> 307384 | L31: 高屏營銷處
A32: TW002106001B | B32: 大時代量販家電 | C32: 19670921 | D32: 07910980 | E32: 高屏營銷處 | F32: GWB | G32: 高屏 | H32: DEALER_TT | I32: SPD_TT | J32: TW002106001B | K32: =VLOOKUP(A32,[3]工作表4!$A$2:$F$455,6,0) -> 1001549 | L32: 高屏營銷處
A33: TW002108001B | B33: 春聲電器有限公司 | C33: 19590922 | D33: 86633356 | E33: 高屏營銷處 | F33: GWB | G33: 高屏 | H33: DEALER_TT | I33: DCS_TT | J33: TW002108001B | K33: =VLOOKUP(A33,[3]工作表4!$A$2:$F$455,6,0) -> 251184 | L33: 高屏營銷處
A34: TW002118001B | B34: 福總電業社 | C34: 19551001 | D34: 08519549 | E34: 高屏營銷處 | F34: GWB | G34: 高屏 | H34: DEALER_TT | I34: DLC_TT | J34: TW002118001B | L34: 高屏營銷處
A35: TW002119001B | B35: 聯立貿易有限公司 | C35: 19520813 | D35: 70405187 | E35: 高屏營銷處 | F35: GWB | G35: 高屏 | H35: DEALER_TT | I35: DCS_TT | J35: TW002119001B | K35: =VLOOKUP(A35,[3]工作表4!$A$2:$F$455,6,0) -> 470344 | L35: 高屏營銷處
A36: TW002130001B | B36: 百鈴電器影視有限公司 | C36: 19530824 | D36: 72192956 | E36: 嘉南營銷處 | F36: DNB | G36: 嘉南 | H36: DEALER_TT | I36: DCS_TT | J36: TW002130001B | K36: =VLOOKUP(A36,[3]工作表4!$A$2:$F$455,6,0) -> 61703 | L36: 嘉南營銷處
A37: TW002140001B | B37: 大時代量販家電 | C37: 19681011 | D37: 87692727 | E37: 嘉南營銷處 | F37: DNB | G37: 嘉南 | H37: DEALER_TT | I37: DCS_TT | J37: TW002140001B | K37: =VLOOKUP(A37,[3]工作表4!$A$2:$F$455,6,0) -> 187869 | L37: 嘉南營銷處
A38: TW002141001B | B38: 冠銓電器有限公司 | C38: 19630606 | D38: 16860835 | E38: 嘉南營銷處 | F38: DNB | G38: 嘉南 | H38: DEALER_TT | I38: SPD_TT | J38: TW002141001B | K38: =VLOOKUP(A38,[3]工作表4!$A$2:$F$455,6,0) -> 656792 | L38: 嘉南營銷處
A39: TW002143001B | B39: 全省電器有限公司 | C39: 19701230 | D39: 69689334 | E39: 嘉南營銷處 | F39: DNB | G39: 嘉南 | H39: DEALER_TT | I39: SPD_TT | J39: TW002143001B | K39: =VLOOKUP(A39,[3]工作表4!$A$2:$F$455,6,0) -> 4250846 | L39: 嘉南營銷處
A40: TW002144001B | B40: 歐鋒電器行 | C40: 19630108 | D40: 78995756 | E40: 嘉南營銷處 | F40: DNB | G40: 嘉南 | H40: DEALER_TT | I40: DCS_TT | J40: TW002144001B | K40: =VLOOKUP(A40,[3]工作表4!$A$2:$F$455,6,0) -> 433169 | L40: 嘉南營銷處
A41: TW002146001B | B41: 宇騰電器行 | C41: 19630910 | D41: 78630074 | E41: 嘉南營銷處 | F41: DNB | G41: 嘉南 | H41: DEALER_TT | I41: DCS_TT
A42: TW002150001B | B42: 宏偉電器行 | C42: 19610121 | D42: 06504730 | E42: 嘉南營銷處 | F42: DNB | G42: 嘉南 | H42: DEALER_TT | I42: DCS_TT | J42: TW002150001B | K42: =VLOOKUP(A42,[3]工作表4!$A$2:$F$455,6,0) -> 381426 | L42: 嘉南營銷處
A43: TW002151001B | B43: 松寶電器行 | C43: 19530411 | D43: 85741379 | E43: 嘉南營銷處 | F43: DNB | G43: 嘉南 | H43: DEALER_TT | I43: DLC_TT | J43: TW002151001B | K43: =VLOOKUP(A43,[3]工作表4!$A$2:$F$455,6,0) -> 33834 | L43: 嘉南營銷處
A44: TW002152001B | B44: 世英電業行 | C44: 19510120 | D44: 69310389 | E44: 嘉南營銷處 | F44: DNB | G44: 嘉南 | H44: DEALER_TT | I44: DCS_TT
A45: TW002154001B | B45: 信福電器有限公司 | C45: 19710107 | D45: 69279211 | E45: 嘉南營銷處 | F45: DNB | G45: 嘉南 | H45: DEALER_TT | I45: DCS_TT | J45: TW002154001B | K45: =VLOOKUP(A45,[3]工作表4!$A$2:$F$455,6,0) -> 2065164 | L45: 嘉南營銷處
A46: TW002155001B | B46: 老李電器企業有限公司 | C46: 19541025 | D46: 06375829 | E46: 嘉南營銷處 | F46: DNB | G46: 嘉南 | H46: DEALER_TT | I46: DCS_TT | J46: TW002155001B | K46: =VLOOKUP(A46,[3]工作表4!$A$2:$F$455,6,0) -> 160664 | L46: 嘉南營銷處
A47: TW002158001B | B47: 中美電器行 | C47: 19640417 | D47: 20198584 | E47: 嘉南營銷處 | F47: DNB | G47: 嘉南 | H47: DEALER_TT | I47: DLC_TT | J47: TW002158001B | K47: =VLOOKUP(A47,[3]工作表4!$A$2:$F$455,6,0) -> 111798 | L47: 嘉南營銷處
A48: TW002173001B | B48: 泰欣電器行 | C48: 19601208 | D48: 06556096 | E48: 嘉南營銷處 | F48: DNB | G48: 嘉南 | H48: DEALER_TT | I48: SPD_TT | J48: TW002173001B | K48: =VLOOKUP(A48,[3]工作表4!$A$2:$F$455,6,0) -> 1143928 | L48: 嘉南營銷處
A49: TW002174001B | B49: 強尼電器百貨大批發 | C49: 19651231 | D49: 06583544 | E49: 嘉南營銷處 | F49: DNB | G49: 嘉南 | H49: DEALER_TT | I49: DLC_TT
A50: TW002176001B | B50: 益昌電氣行 | C50: 19720603 | D50: 72166747 | E50: 嘉南營銷處 | F50: DNB | G50: 嘉南 | H50: DEALER_TT | I50: DCS_TT | J50: TW002176001B | K50: =VLOOKUP(A50,[3]工作表4!$A$2:$F$455,6,0) -> 310847 | L50: 嘉南營銷處
A51: TW002192001B | B51: 和春電器行 | C51: 19681015 | D51: 64910498 | E51: 嘉南營銷處 | F51: DNB | G51: 嘉南 | H51: DEALER_TT | I51: DLC_TT | J51: TW002192001B | L51: 嘉南營銷處
A52: TW002194001B | B52: 宏達電氣行 | C52: 19780611 | D52: 64862377 | E52: 台中營銷處 | F52: DJB | G52: 台中 | H52: DEALER_TT | I52: DCS_TT | J52: TW002194001B | K52: =VLOOKUP(A52,[3]工作表4!$A$2:$F$455,6,0) -> 473858 | L52: 台中營銷處
A53: TW002201001B | B53: 中聯發國際企業有限公司 | C53: TW002201 | D53: 16402395 | E53: 台中營銷處 | F53: DJB | G53: 台中 | H53: DEALER_TT | I53: DLC_TT | J53: TW002201001B | K53: =VLOOKUP(A53,[3]工作表4!$A$2:$F$455,6,0) -> 89976 | L53: 台中營銷處
A54: TW002204001B | B54: 鑫昌電器有限公司 | C54: 22789515 | D54: 22791019 | E54: 台中營銷處 | F54: DJB | G54: 台中 | H54: DEALER_TT | I54: SPD_TT | J54: TW002204001B | L54: 台中營銷處
A55: TW002206001B | B55: 祥峰電器行 | C55: TW002206 | D55: 61841075 | E55: 台中營銷處 | F55: DJB | G55: 台中 | H55: DEALER_TT | I55: DLC_TT | J55: TW002206001B | K55: =VLOOKUP(A55,[3]工作表4!$A$2:$F$455,6,0) -> 0 | L55: 台中營銷處
A56: TW002214001B | B56: 欣益電器行 | C56: TW002214 | D56: 12043905 | E56: 台中營銷處 | F56: DJB | G56: 台中 | H56: DEALER_TT | I56: SPD_TT | J56: TW002214001B | K56: =VLOOKUP(A56,[3]工作表4!$A$2:$F$455,6,0) -> 224284 | L56: 台中營銷處
A57: TW002223001B | B57: 長紅電子專賣店 | C57: 19680422 | D57: 92812618 | E57: 台中營銷處 | F57: DJB | G57: 台中 | H57: DEALER_TT | I57: DLC_TT | J57: TW002223001B | K57: =VLOOKUP(A57,[3]工作表4!$A$2:$F$455,6,0) -> 20106 | L57: 台中營銷處
A58: TW002228001B | B58: 嘉聲電器有限公司 | C58: TW002228 | D58: 22960798 | E58: 台中營銷處 | F58: DJB | G58: 台中 | H58: DEALER_TT | I58: DLC_TT
A59: TW002229001B | B59: 宏昌電器行 | C59: 19590618 | D59: 24151920 | E59: 台中營銷處 | F59: DJB | G59: 台中 | H59: DEALER_TT | I59: DLC_TT | J59: TW002229001B | K59: =VLOOKUP(A59,[3]工作表4!$A$2:$F$455,6,0) -> 30604 | L59: 台中營銷處
A60: TW002239001B | B60: 明信電子專賣店 | C60: 19641206 | D60: 77109680 | E60: 台中營銷處 | F60: DJB | G60: 台中 | H60: DEALER_TT | I60: DLC_TT | J60: TW002239001B | K60: =VLOOKUP(A60,[3]工作表4!$A$2:$F$455,6,0) -> 37237 | L60: 台中營銷處
A61: TW002245001B | B61: 明嘉電器 | C61: TW002245 | D61: 23077347 | E61: 台中營銷處 | F61: DJB | G61: 台中 | H61: DEALER_TT | I61: DLC_TT
A62: TW002248001B | B62: 盟音電器 | C62: TW002248 | D62: 84181461 | E62: 台中營銷處 | F62: DJB | G62: 台中 | H62: DEALER_TT | I62: DLC_TT
A63: TW002250001B | B63: 格愛陞有限公司 | C63: TW002250 | D63: 84694814 | E63: 台中營銷處 | F63: DJB | G63: 台中 | H63: DEALER_TT | I63: DCS_TT
A64: TW002252001B | B64: 沅富電器行 | C64: 19611227 | D64: 18334578 | E64: 台中營銷處 | F64: DJB | G64: 台中 | H64: DEALER_TT | I64: SPD_TT | J64: TW002252001B | K64: =VLOOKUP(A64,[3]工作表4!$A$2:$F$455,6,0) -> 438928 | L64: 台中營銷處
A65: TW002257001B | B65: 恆信電器有限公司 | C65: TW002257 | D65: 89817694 | E65: 台中營銷處 | F65: DJB | G65: 台中 | H65: DEALER_TT | I65: DLC_TT | J65: TW002257001B | K65: =VLOOKUP(A65,[3]工作表4!$A$2:$F$455,6,0) -> 112153 | L65: 台中營銷處
A66: TW002261001B | B66: 美齊富有限公司 | C66: 23893338 | D66: 23811788 | E66: 台中營銷處 | F66: DJB | G66: 台中 | H66: DEALER_TT | I66: DLC_TT | J66: TW002261001B | K66: =VLOOKUP(A66,[3]工作表4!$A$2:$F$455,6,0) -> 43485 | L66: 台中營銷處
A67: TW002261002B | B67: 美齊富有限公司 | C67: XXXXXXXX | D67: XXXXXXXX | E67: SAC | F67: ID&SAC | G67: SAC Sales | H67: B2B_TT | I67: CAC_TT
A68: TW002262001B | B68: 太子電業行 | C68: TW002262 | D68: 77685331 | E68: 台中營銷處 | F68: DJB | G68: 台中 | H68: DEALER_TT | I68: DCS_TT | J68: TW002262001B | K68: =VLOOKUP(A68,[3]工作表4!$A$2:$F$455,6,0) -> 912450 | L68: 台中營銷處
A69: TW002265001B | B69: 大謄電器有限公司 | C69: TW002265 | D69: 22915458 | E69: 台中營銷處 | F69: DJB | G69: 台中 | H69: DEALER_TT | I69: DLC_TT | J69: TW002265001B | K69: =VLOOKUP(A69,[3]工作表4!$A$2:$F$455,6,0) -> 125547 | L69: 台中營銷處
A70: TW002267001B | B70: 東林電器有限公司 | C70: 19531101 | D70: 97482257 | E70: 台中營銷處 | F70: DJB | G70: 台中 | H70: DEALER_TT | I70: DLC_TT | J70: TW002267001B | L70: 台中營銷處
A71: TW002268001B | B71: 佳億電器量販 | C71: TW002268 | D71: 77249459 | E71: 台中營銷處 | F71: DJB | G71: 台中 | H71: DEALER_TT | I71: DLC_TT
A72: TW002277001B | B72: 家晟電器 | C72: TW002277 | D72: 22401937 | E72: 台中營銷處 | F72: DJB | G72: 台中 | H72: DEALER_TT | I72: DLC_TT
A73: TW002288001B | B73: 幸韻電器有限公司 | C73: 19661201 | D73: 89328106 | E73: 桃竹營銷處 | F73: DWB | G73: 桃竹 | H73: DEALER_TT | I73: SPD_TT | J73: TW002288001B | K73: =VLOOKUP(A73,[3]工作表4!$A$2:$F$455,6,0) -> 917980 | L73: 桃竹營銷處
A74: TW002291001B | B74: 金一電器有限公司 | C74: 19570623 | D74: 22137992 | E74: 桃竹營銷處 | F74: DWB | G74: 桃竹 | H74: DEALER_TT | I74: SPD_TT | J74: TW002291001B | K74: =VLOOKUP(A74,[3]工作表4!$A$2:$F$455,6,0) -> 1960477 | L74: 桃竹營銷處
A75: TW002295001B | B75: 金昇電器有限公司 | C75: 19691111 | D75: 49651654 | E75: 桃竹營銷處 | F75: DWB | G75: 桃竹 | H75: DEALER_TT | I75: DLC_TT
A76: TW002305001B | B76: 皇典電器行 | C76: 19680201 | D76: 78544155 | E76: 桃竹營銷處 | F76: DWB | G76: 桃竹 | H76: DEALER_TT | I76: DLC_TT | J76: TW002305001B | L76: 桃竹營銷處
A77: TW002315001B | B77: 銓日電器行 | C77: 19670416 | D77: 73800090 | E77: 桃竹營銷處 | F77: DWB | G77: 桃竹 | H77: DEALER_TT | I77: DLC_TT | L77: 桃竹營銷處
A78: TW002324001B | B78: 兆宏電業行 | C78: 19640130 | D78: 47039765 | E78: 桃竹營銷處 | F78: DWB | G78: 桃竹 | H78: DEALER_TT | I78: DLC_TT | J78: TW002324001B | K78: =VLOOKUP(A78,[3]工作表4!$A$2:$F$455,6,0) -> 318580 | L78: 桃竹營銷處
A79: TW002331001B | B79: 同慶電氣行 | C79: 19530412 | D79: 43779752 | E79: 桃竹營銷處 | F79: DWB | G79: 桃竹 | H79: DEALER_TT | I79: DLC_TT | J79: TW002331001B | K79: =VLOOKUP(A79,[3]工作表4!$A$2:$F$455,6,0) -> 803358 | L79: 桃竹營銷處
A80: TW002338001B | B80: 福娥電業行 | C80: 19580811 | D80: 13513828 | E80: 桃竹營銷處 | F80: DWB | G80: 桃竹 | H80: DEALER_TT | I80: DCS_TT | J80: TW002338001B | K80: =VLOOKUP(A80,[3]工作表4!$A$2:$F$455,6,0) -> 362452 | L80: 桃竹營銷處
A81: TW002343001B | B81: 名富電器行 | C81: 19500615 | D81: 45162367 | E81: 桃竹營銷處 | F81: DWB | G81: 桃竹 | H81: DEALER_TT | I81: DCS_TT | J81: TW002343001B | K81: =VLOOKUP(A81,[3]工作表4!$A$2:$F$455,6,0) -> 78924 | L81: 桃竹營銷處
A82: TW002347001B | B82: 得興電器有限公司 | C82: 19690802 | D82: 89730711 | E82: 桃竹營銷處 | F82: DWB | G82: 桃竹 | H82: DEALER_TT | I82: DCS_TT | J82: TW002347001B | K82: =VLOOKUP(A82,[3]工作表4!$A$2:$F$455,6,0) -> 2218599 | L82: 桃竹營銷處
A83: TW002349001B | B83: 金長益電器有限公司 | C83: 19640714 | D83: 16908253 | E83: 桃竹營銷處 | F83: DWB | G83: 桃竹 | H83: DEALER_TT | I83: DLC_TT | J83: TW002349001B | K83: =VLOOKUP(A83,[3]工作表4!$A$2:$F$455,6,0) -> 1293703 | L83: 桃竹營銷處
A84: TW002351001B | B84: 雅光有限公司 | C84: 19590805 | D84: 01189353 | E84: 台北營銷處 | F84: TPH | G84: 台北 | H84: DEALER_TT | I84: SPD_TT | J84: TW002351001B | K84: =VLOOKUP(A84,[3]工作表4!$A$2:$F$455,6,0) -> 4865575 | L84: 台北營銷處
A85: TW002351002B | B85: 雅光有限公司 | C85: XXXXXXXX | D85: XXXXXXXX | E85: SAC | F85: ID&SAC | G85: SAC Sales | H85: B2B_TT | I85: CAC_TT
A86: TW002352001B | B86: 佳禾貿易有限公司 | C86: 19501112 | D86: 97310065 | E86: 台北營銷處 | F86: TPH | G86: 台北 | H86: DEALER_TT | I86: DLC_TT | J86: TW002352001B | K86: =VLOOKUP(A86,[3]工作表4!$A$2:$F$455,6,0) -> 52365 | L86: 台北營銷處
A87: TW002359001B | B87: 宏仁電器行 | C87: 19690518 | D87: 92883893 | E87: 台北營銷處 | F87: TPH | G87: 台北 | H87: DEALER_TT | I87: DLC_TT | J87: TW002359001B | L87: 台北營銷處
A88: TW002363001B | B88: 吳頡興電器企業有限公司 | C88: 19551115 | D88: 22905634 | E88: 台北營銷處 | F88: TPH | G88: 台北 | H88: DEALER_TT | I88: DLC_TT | J88: TW002363001B | K88: =VLOOKUP(A88,[3]工作表4!$A$2:$F$455,6,0) -> 0 | L88: 台北營銷處
A89: TW002368001B | B89: 健融電器行 | C89: 19590810 | D89: 02153403 | E89: 台北營銷處 | F89: TPH | G89: 台北 | H89: DEALER_TT | I89: DLC_TT | J89: TW002368001B | L89: 台北營銷處
A90: TW002372001B | B90: 承德國際有限公司 | C90: 19661020 | D90: 89960924 | E90: 台北營銷處 | F90: TPH | G90: 台北 | H90: DEALER_TT | I90: DCS_TT | J90: TW002372001B | K90: =VLOOKUP(A90,[3]工作表4!$A$2:$F$455,6,0) -> 952784 | L90: 台北營銷處
A91: TW002375001B | B91: 建而福電器有限公司 | C91: 19470824 | D91: 33842192 | E91: 台北營銷處 | F91: TPH | G91: 台北 | H91: DEALER_TT | I91: DLC_TT | J91: TW002375001B | L91: 台北營銷處
A92: TW002376001B | B92: 新弘貿易有限公司 | C92: 19590115 | D92: 23004274 | E92: 台北營銷處 | F92: TPH | G92: 台北 | H92: DEALER_TT | I92: SPD_TT | J92: TW002376001B | K92: =VLOOKUP(A92,[3]工作表4!$A$2:$F$455,6,0) -> 1353383 | L92: 台北營銷處
A93: TW002378001B | B93: 上順電器有限公司 | C93: 19550916 | D93: 23815317 | E93: 台北營銷處 | F93: TPH | G93: 台北 | H93: DEALER_TT | I93: DCS_TT | J93: TW002378001B | K93: =VLOOKUP(A93,[3]工作表4!$A$2:$F$455,6,0) -> 394384 | L93: 台北營銷處
A94: TW002381001B | B94: 萬豐視聽電業有限公司 | C94: 19620320 | D94: 22592990 | E94: 台北營銷處 | F94: TPH | G94: 台北 | H94: DEALER_TT | I94: DCS_TT | J94: TW002381001B | K94: =VLOOKUP(A94,[3]工作表4!$A$2:$F$455,6,0) -> 1607582 | L94: 台北營銷處
A95: TW002382001B | B95: 訊立電器有限公司 | C95: 19560601 | D95: 12710694 | E95: 台北營銷處 | F95: TPH | G95: 台北 | H95: DEALER_TT | I95: DLC_TT | J95: TW002382001B | L95: 台北營銷處
A96: TW002387001B | B96: 鎮吉實業 | C96: 19651125 | D96: 70662642 | E96: 台北營銷處 | F96: TPH | G96: 台北 | H96: DEALER_TT | I96: DCS_TT | K96: =VLOOKUP(A96,[3]工作表4!$A$2:$F$455,6,0) -> 514190
A97: TW002391001B | B97: 益大家電事業有限公司 | C97: 24239141 | D97: 22573614 | E97: 台北營銷處 | F97: TPH | G97: 台北 | H97: DEALER_TT | I97: DLC_TT | J97: TW002391001B | K97: =VLOOKUP(A97,[3]工作表4!$A$2:$F$455,6,0) -> 0 | L97: 台北營銷處
A98: TW002398001B | B98: 彥昌電器行 | C98: 26416154 | D98: 02300192 | E98: 台北營銷處 | F98: TPH | G98: 台北 | H98: DEALER_TT | I98: DLC_TT | J98: TW002398001B | L98: 台北營銷處
A99: TW002400001B | B99: 金亞實業有限公司 | C99: 26473088 | D99: 89230504 | E99: 台北營銷處 | F99: TPH | G99: 台北 | H99: DEALER_TT | I99: DCS_TT | J99: TW002400001B | K99: =VLOOKUP(A99,[3]工作表4!$A$2:$F$455,6,0) -> 3994804 | L99: 台北營銷處
A100: TW002409001B | B100: 太空電器行 | C100: 19551106 | D100: 77300011 | E100: 高屏營銷處 | F100: GWB | G100: 高屏 | H100: DEALER_TT | I100: DLC_TT | J100: TW002409001B | L100: 高屏營銷處
A101: TW002409002B | B101: 太空電器行 | C101: XXXXXXXX | D101: XXXXXXXX | E101: SAC | F101: ID&SAC | G101: SAC Sales | H101: B2B_TT | I101: CAC_TT
A102: TW002410001B | B102: 全新電器有限公司 | C102: 19510722 | D102: 20760963 | E102: 台北營銷處 | F102: TPH | G102: 台北 | H102: DEALER_TT | I102: DLC_TT
A103: TW002411001B | B103: 金門電器行 | C103: 19530605 | D103: 77265149 | E103: 高屏營銷處 | F103: GWB | G103: 高屏 | H103: DEALER_TT | I103: DCS_TT | J103: TW002411001B | K103: =VLOOKUP(A103,[3]工作表4!$A$2:$F$455,6,0) -> 172810 | L103: 高屏營銷處
A104: TW002416001B | B104: 國寶電業行 | C104: 19680525 | D104: 12180750 | E104: 台北營銷處 | F104: TPH | G104: 台北 | H104: DEALER_TT | I104: DLC_TT | J104: TW002416001B | L104: 台北營銷處
A105: TW002420001B | B105: 高登電器有限公司 | C105: 19551029 | D105: 22629645 | E105: 台北營銷處 | F105: TPH | G105: 台北 | H105: DEALER_TT | I105: DLC_TT | J105: TW002420001B | K105: =VLOOKUP(A105,[3]工作表4!$A$2:$F$455,6,0) -> 101291 | L105: 台北營銷處
A106: TW002427001B | B106: 國豐電業商行 | C106: 19551014 | D106: 94836355 | E106: 台北營銷處 | F106: TPH | G106: 台北 | H106: DEALER_TT | I106: DLC_TT | J106: TW002427001B | L106: 台北營銷處
A107: TW002428001B | B107: 精實電器行 | C107: 19740715 | D107: 64803602 | E107: 台北營銷處 | F107: TPH | G107: 台北 | H107: DEALER_TT | I107: DLC_TT | J107: TW002428001B | K107: =VLOOKUP(A107,[3]工作表4!$A$2:$F$455,6,0) -> 27810 | L107: 台北營銷處
A108: TW002431001B | B108: 一世代電氣行 | C108: 19620315 | D108: 18063076 | E108: 台北營銷處 | F108: TPH | G108: 台北 | H108: DEALER_TT | I108: DCS_TT | J108: TW002431001B | K108: =VLOOKUP(A108,[3]工作表4!$A$2:$F$455,6,0) -> 361079 | L108: 台北營銷處
A109: TW002434001B | B109: 上將電業社 | C109: 19550423 | D109: 92933057 | E109: 台北營銷處 | F109: TPH | G109: 台北 | H109: DEALER_TT | I109: DLC_TT | J109: TW002434001B | K109: =VLOOKUP(A109,[3]工作表4!$A$2:$F$455,6,0) -> 0 | L109: 台北營銷處
A110: TW002441001B | B110: 上揚電器行 | C110: 19660523 | D110: 02418034 | E110: 台北營銷處 | F110: TPH | G110: 台北 | H110: DEALER_TT | I110: DLC_TT | J110: TW002441001B | K110: =VLOOKUP(A110,[3]工作表4!$A$2:$F$455,6,0) -> 19397 | L110: 台北營銷處
A111: TW002444001B | B111: 台灣電器專賣店 | C111: 19700805 | D111: 98077164 | E111: 台北營銷處 | F111: TPH | G111: 台北 | H111: DEALER_TT | I111: DCS_TT | J111: TW002444001B | K111: =VLOOKUP(A111,[3]工作表4!$A$2:$F$455,6,0) -> 483476 | L111: 台北營銷處
A112: TW002448001B | B112: 宜勇電器 | C112: 19631117 | D112: 66256925 | E112: 台北營銷處 | F112: TPH | G112: 台北 | H112: DEALER_TT | I112: DLC_TT
A113: TW002450001B | B113: 日大電業行 | C113: 19770914 | D113: 40523763 | E113: 台北營銷處 | F113: TPH | G113: 台北 | H113: DEALER_TT | I113: DCS_TT | J113: TW002450001B | K113: =VLOOKUP(A113,[3]工作表4!$A$2:$F$455,6,0) -> 69613 | L113: 台北營銷處
A114: TW002456001B | B114: 燦坤實業股份有限公司 | C114: 69568009 | D114: 69568009 | E114: MMCS-燦坤 | F114: MMCS | G114: MMCS | H114: MMCS_TK3C | I114: CSC_TT | J114: TW002456001B | K114: =VLOOKUP(A114,[3]工作表4!$A$2:$F$455,6,0) -> 380171047 | L114: 燦坤
A115: TW002501001B | B115: 家福股份有限公司總公司 | C115: 22662550 | D115: 22662550 | E115: MMCS-家福 | F115: MMCS | G115: MMCS | H115: MMCS_C4 | I115: MMC_TT | J115: TW002501001B | K115: =VLOOKUP(A115,[3]工作表4!$A$2:$F$455,6,0) -> 382365845 | L115: 家樂福
A116: TW002514001B | B116: 今漢電器有限公司 | C116: 19591213 | D116: 22117460 | E116: 台北營銷處 | F116: TPH | G116: 台北 | H116: DEALER_TT | I116: SPD_TT | J116: TW002514001B | K116: =VLOOKUP(A116,[3]工作表4!$A$2:$F$455,6,0) -> 4283410 | L116: 台北營銷處
A117: TW002516001B | B117: 順寶電器 | C117: 19520904 | D117: 34159393 | E117: 台北營銷處 | F117: TPH | G117: 台北 | H117: DEALER_TT | I117: DLC_TT
A118: TW002525001B | B118: 大潤發流通事業股份有限公司 | C118: 97165560 | D118: 97165560 | E118: MMCS-大潤發 | F118: MMCS | G118: MMCS | H118: MMCS_RT | I118: MMC_TT | J118: TW002525001B | K118: =VLOOKUP(A118,[3]工作表4!$A$2:$F$455,6,0) -> 188854082 | L118: 大潤發
A119: TW002529001B | B119: 遠百企業股份有限公司 | C119: 05714195 | D119: 05714195 | E119: MMCS-愛買 | F119: MMCS | G119: MMCS | H119: MMCS_OTHERS | I119: MMC_TT | J119: TW002529001B | K119: =VLOOKUP(A119,[3]工作表4!$A$2:$F$455,6,0) -> 44390321 | L119: 愛買
A120: TW002535001B | B120: 瑞豪電器行 | C120: 19711205 | D120: 67899377 | E120: 台北營銷處 | F120: TPH | G120: 台北 | H120: DEALER_TT | I120: DLC_TT | J120: TW002535001B | L120: 台北營銷處
A121: TW002542001B | B121: 佳麗寶股份有限公司 | C121: 19470128 | D121: 04897247 | E121: 台北營銷處 | F121: TPH | G121: 台北 | H121: DEALER_TT | I121: DCS_TT
A122: TW002557001B | B122: 全民電子音響專賣店 | C122: TW002557 | D122: 77593945 | E122: 台中營銷處 | F122: DJB | G122: 台中 | H122: DEALER_TT | I122: SPD_TT | J122: TW002557001B | K122: =VLOOKUP(A122,[3]工作表4!$A$2:$F$455,6,0) -> 2570697 | L122: 台中營銷處
A123: TW002572001B | B123: 新傑電器有限公司 | C123: 19540819 | D123: 12749635 | E123: 高屏營銷處 | F123: GWB | G123: 高屏 | H123: DEALER_TT | I123: SPD_TT | J123: TW002572001B | K123: =VLOOKUP(A123,[3]工作表4!$A$2:$F$455,6,0) -> 900784 | L123: 高屏營銷處
A124: TW002575001B | B124: 東欣電器商行 | C124: 19510527 | D124: 08001827 | E124: 高屏營銷處 | F124: GWB | G124: 高屏 | H124: DEALER_TT | I124: DLC_TT | J124: TW002575001B | K124: =VLOOKUP(A124,[3]工作表4!$A$2:$F$455,6,0) -> 112099 | L124: 高屏營銷處
A125: TW002630001B | B125: 錦穗實業社 | C125: 19571107 | D125: 73713103 | E125: 嘉南營銷處 | F125: DNB | G125: 嘉南 | H125: DEALER_TT | I125: DLC_TT | J125: TW002630001B | K125: =VLOOKUP(A125,[3]工作表4!$A$2:$F$455,6,0) -> 68590 | L125: 嘉南營銷處
A126: TW002652001B | B126: 第二電器音響有限公司 | C126: 19600410 | D126: 33837276 | E126: 台北營銷處 | F126: TPH | G126: 台北 | H126: DEALER_TT | I126: DCS_TT | J126: TW002652001B | K126: =VLOOKUP(A126,[3]工作表4!$A$2:$F$455,6,0) -> 1792866 | L126: 台北營銷處
A127: TW002666001B | B127: 世和電器行 | C127: 19661031 | D127: 87705862 | E127: 桃竹營銷處 | F127: DWB | G127: 桃竹 | H127: DEALER_TT | I127: DLC_TT
A128: TW002666002B | B128: 世和電器行 | C128: 19661031 | D128: 87705862 | E128: ETC | F128: ETC | G128: ETC | H128: ETC | I128: ETC_TT | J128: TW002666002B | L128: ETC
A129: TW002674001B | B129: 明聳企業有限公司 | C129: XXXXXXXX | D129: XXXXXXXX | E129: SAC | F129: ID&SAC | G129: SAC Sales | H129: B2B_TT | I129: CAC_TT
A130: TW002675001B | B130: 利聲家電有限公司 | C130: 19470925 | D130: 86101317 | E130: 嘉南營銷處 | F130: DNB | G130: 嘉南 | H130: DEALER_TT | I130: DLC_TT | J130: TW002675001B | K130: =VLOOKUP(A130,[3]工作表4!$A$2:$F$455,6,0) -> 153261 | L130: 嘉南營銷處
A131: TW002677001B | B131: 銘山電器 | C131: 23393762 | D131: 23328168 | E131: 台中營銷處 | F131: DJB | G131: 台中 | H131: DEALER_TT | I131: DLC_TT
A132: TW002678001B | B132: 昇泰電業行 | C132: TW002678 | D132: 05830687 | E132: 台中營銷處 | F132: DJB | G132: 台中 | H132: DEALER_TT | I132: DLC_TT
A133: TW002685001B | B133: 威揚電器行 | C133: 19690225 | D133: 17276277 | E133: 台北營銷處 | F133: TPH | G133: 台北 | H133: DEALER_TT | I133: SPD_TT | J133: TW002685001B | K133: =VLOOKUP(A133,[3]工作表4!$A$2:$F$455,6,0) -> 701749 | L133: 台北營銷處
A134: TW002710001B | B134: 建利電子音響 | C134: 19580810 | D134: 18324380 | E134: 台中營銷處 | F134: DJB | G134: 台中 | H134: DEALER_TT | I134: DLC_TT
A135: TW002718001B | B135: 全國電子股份有限公司 | C135: 22006252 | D135: 22006252 | E135: MMCS-全國 | F135: MMCS | G135: MMCS | H135: MMCS_E-LIFE | I135: CSC_TT | J135: TW002718001B | K135: =VLOOKUP(A135,[3]工作表4!$A$2:$F$455,6,0) -> 494340134 | L135: 全國
A136: TW002720001B | B136: 天聲電器商行 | C136: 19540401 | D136: 98249862 | E136: 桃竹營銷處 | F136: DWB | G136: 桃竹 | H136: DEALER_TT | I136: DLC_TT | J136: TW002720001B | K136: =VLOOKUP(A136,[3]工作表4!$A$2:$F$455,6,0) -> 107434 | L136: 桃竹營銷處
A137: TW002721001B | B137: 統偉視聽工程有限公司 | C137: 19591014 | D137: 22669408 | E137: 桃竹營銷處 | F137: DWB | G137: 桃竹 | H137: DEALER_TT | I137: DCS_TT | J137: TW002721001B | K137: =VLOOKUP(A137,[3]工作表4!$A$2:$F$455,6,0) -> 103932 | L137: 桃竹營銷處
A138: TW002725001B | B138: 侑興電器有限公司 | C138: TW002725 | D138: 22682057 | E138: 台中營銷處 | F138: DJB | G138: 台中 | H138: DEALER_TT | I138: DLC_TT | J138: TW002725001B | L138: 台中營銷處
A139: TW002725002B | B139: 侑興電器有限公司 | C139: XXXXXXXX | D139: XXXXXXXX | E139: SAC | F139: ID&SAC | G139: SAC Sales | H139: B2B_TT | I139: CAC_TT | J139: TW002725002B
A140: TW002745001B | B140: 全英電器有限公司 | C140: 19530909 | D140: 30976506 | E140: 台北營銷處 | F140: TPH | G140: 台北 | H140: DEALER_TT | I140: DLC_TT | J140: TW002745001B | K140: =VLOOKUP(A140,[3]工作表4!$A$2:$F$455,6,0) -> 0 | L140: 台北營銷處
A141: TW002748001B | B141: 創作電子音響專賣店 | C141: TW002748 | D141: 81964433 | E141: 台中營銷處 | F141: DJB | G141: 台中 | H141: DEALER_TT | I141: DCS_TT | J141: TW002748001B | K141: =VLOOKUP(A141,[3]工作表4!$A$2:$F$455,6,0) -> 519231 | L141: 台中營銷處
A142: TW002750001B | B142: 集雅社股份有限公司 | C142: 89266170 | D142: 89266170 | E142: HPC | F142: DEPT | G142: 百貨 | H142: DEALER_DEPT | I142: DEALER_DEPT | J142: TW002750001B | K142: =VLOOKUP(A142,[3]工作表4!$A$2:$F$455,6,0) -> 55760863 | L142: 百貨
A143: TW002755001B | B143: 聯鈦冷凍空調電器行 | C143: 19660924 | D143: 14156334 | E143: 嘉南營銷處 | F143: DNB | G143: 嘉南 | H143: DEALER_TT | I143: DCS_TT | J143: TW002755001B | K143: =VLOOKUP(A143,[3]工作表4!$A$2:$F$455,6,0) -> 448760 | L143: 嘉南營銷處
A144: TW002757001B | B144: 慧聲電器行 | C144: 19601115 | D144: 78215533 | E144: 台北營銷處 | F144: TPH | G144: 台北 | H144: DEALER_TT | I144: DCS_TT | J144: TW002757001B | K144: =VLOOKUP(A144,[3]工作表4!$A$2:$F$455,6,0) -> 0 | L144: 台北營銷處
A145: TW002758001B | B145: 秀翔實業有限公司 | C145: 89429694 | D145: 89429694 | E145: HPC | F145: DEPT | G145: 百貨 | H145: DEALER_DEPT | I145: DEALER_DEPT | J145: TW002758001B | K145: =VLOOKUP(A145,[3]工作表4!$A$2:$F$455,6,0) -> 10889216 | L145: 百貨
A146: TW002761001B | B146: 憶豐電器有限公司 | C146: 19670109 | D146: 47109086 | E146: 桃竹營銷處 | F146: DWB | G146: 桃竹 | H146: DEALER_TT | I146: DLC_TT | J146: TW002761001B | K146: =VLOOKUP(A146,[3]工作表4!$A$2:$F$455,6,0) -> 135039 | L146: 桃竹營銷處
A147: TW002762001B | B147: 員毅電器有限公司 | C147: TW002762 | D147: 16929102 | E147: 台中營銷處 | F147: DJB | G147: 台中 | H147: DEALER_TT | I147: DLC_TT | J147: TW002762001B | K147: =VLOOKUP(A147,[3]工作表4!$A$2:$F$455,6,0) -> 27198 | L147: 台中營銷處
A148: TW002764001B | B148: 弘象電器有限公司 | C148: 19670507 | D148: 97316526 | E148: 台北營銷處 | F148: TPH | G148: 台北 | H148: DEALER_TT | I148: DLC_TT | J148: TW002764001B | L148: 台北營銷處
A149: TW002769001B | B149: 東農電器行 | C149: 19611101 | D149: 78766509 | E149: 高屏營銷處 | F149: GWB | G149: 高屏 | H149: DEALER_TT | I149: SPD_TT | J149: TW002769001B | K149: =VLOOKUP(A149,[3]工作表4!$A$2:$F$455,6,0) -> 975667 | L149: 高屏營銷處
A150: TW002769002B | B150: 東農電器行 | C150: XXXXXXXX | D150: XXXXXXXX | E150: SAC | F150: ID&SAC | G150: SAC Sales | H150: B2B_TT | I150: CAC_TT
A151: TW002780001B | B151: 金銓電器行 | C151: TW002780 | D151: 13759385 | E151: 台中營銷處 | F151: DJB | G151: 台中 | H151: DEALER_TT | I151: DLC_TT | J151: TW002780001B | K151: =VLOOKUP(A151,[3]工作表4!$A$2:$F$455,6,0) -> 128254 | L151: 台中營銷處
A152: TW002789001B | B152: 宏昇電器行 | C152: 19671229 | D152: 97842555 | E152: 台中營銷處 | F152: DJB | G152: 台中 | H152: DEALER_TT | I152: SPD_TT | J152: TW002789001B | K152: =VLOOKUP(A152,[3]工作表4!$A$2:$F$455,6,0) -> 891734 | L152: 台中營銷處
A153: TW002801001B | B153: 銘信視聽電器城 | C153: 19710720 | D153: 92811337 | E153: 台中營銷處 | F153: DJB | G153: 台中 | H153: DEALER_TT | I153: DLC_TT | J153: TW002801001B | K153: =VLOOKUP(A153,[3]工作表4!$A$2:$F$455,6,0) -> 25760 | L153: 台中營銷處
A154: TW002811001B | B154: 棋杰電器行 | C154: 19650706 | D154: 08016878 | E154: 高屏營銷處 | F154: GWB | G154: 高屏 | H154: DEALER_TT | I154: SPD_TT | J154: TW002811001B | K154: =VLOOKUP(A154,[3]工作表4!$A$2:$F$455,6,0) -> 2178386 | L154: 高屏營銷處
A155: TW002843001B | B155: 吉田電器行 | C155: 19620111 | D155: 17683437 | E155: 桃竹營銷處 | F155: DWB | G155: 桃竹 | H155: DEALER_TT | I155: DLC_TT | J155: TW002843001B | K155: =VLOOKUP(A155,[3]工作表4!$A$2:$F$455,6,0) -> 99405 | L155: 桃竹營銷處
A156: TW002851001B | B156: 隆慶電器行 | C156: 47374042 | D156: 47374803 | E156: 台中營銷處 | F156: DJB | G156: 台中 | H156: DEALER_TT | I156: SPD_TT | J156: TW002851001B | K156: =VLOOKUP(A156,[3]工作表4!$A$2:$F$455,6,0) -> 1954920 | L156: 台中營銷處
A157: TW002856001B | B157: 老雙億實業有限公司 | C157: 19490915 | D157: 35957606 | E157: 台北營銷處 | F157: TPH | G157: 台北 | H157: DEALER_TT | I157: DCS_TT | J157: TW002856001B | K157: =VLOOKUP(A157,[3]工作表4!$A$2:$F$455,6,0) -> 379381 | L157: 台北營銷處
A158: TW002858001B | B158: 豐昌電器行 | C158: 19630721 | D158: 06565736 | E158: 嘉南營銷處 | F158: DNB | G158: 嘉南 | H158: DEALER_TT | I158: DLC_TT | J158: TW002858001B | L158: 嘉南營銷處
A159: TW002861001B | B159: 昇廣電器有限公司 | C159: 19611020 | D159: 16498693 | E159: 台中營銷處 | F159: DJB | G159: 台中 | H159: DEALER_TT | I159: DLC_TT | J159: TW002861001B | L159: 台中營銷處
A160: TW002870001B | B160: 松立電業社 | C160: 19560806 | D160: 90720487 | E160: 高屏營銷處 | F160: GWB | G160: 高屏 | H160: DEALER_TT | I160: DLC_TT | J160: TW002870001B | L160: 高屏營銷處
A161: TW002886001B | B161: 三信電氣行 | C161: 19570402 | D161: 08359830 | E161: 台中營銷處 | F161: DJB | G161: 台中 | H161: DEALER_TT | I161: SPD_TT | J161: TW002886001B | K161: =VLOOKUP(A161,[3]工作表4!$A$2:$F$455,6,0) -> 1336878 | L161: 台中營銷處
A162: TW002887001B | B162: 仙風電器有限公司 | C162: XXXXXXXX | D162: XXXXXXXX | E162: 桃竹營銷處 | F162: DWB | G162: 桃竹 | H162: DEALER_TT | I162: DCS_TT | J162: TW002887001B | K162: =VLOOKUP(A162,[3]工作表4!$A$2:$F$455,6,0) -> 412061 | L162: 桃竹營銷處
A163: TW002896001B | B163: 三星電器行 | C163: 19670620 | D163: 59096683 | E163: 台中營銷處 | F163: DJB | G163: 台中 | H163: DEALER_TT | I163: DCS_TT | J163: TW002896001B | K163: =VLOOKUP(A163,[3]工作表4!$A$2:$F$455,6,0) -> 139155 | L163: 台中營銷處
A164: TW002897001B | B164: 南山電器行 | C164: 19700420 | D164: 17925152 | E164: 台北營銷處 | F164: TPH | G164: 台北 | H164: DEALER_TT | I164: DLC_TT | K164: =VLOOKUP(A164,[3]工作表4!$A$2:$F$455,6,0) -> 0
A165: TW002904001B | B165: 天烽電器有限公司 | C165: 19711108 | D165: 80272502 | E165: 台北營銷處 | F165: TPH | G165: 台北 | H165: DEALER_TT | I165: DLC_TT | J165: TW002904001B | K165: =VLOOKUP(A165,[3]工作表4!$A$2:$F$455,6,0) -> 21238 | L165: 台北營銷處
A166: TW002919001B | B166: 建鑫電器行 | C166: 19721112 | D166: 18282184 | E166: 嘉南營銷處 | F166: DNB | G166: 嘉南 | H166: DEALER_TT | I166: DCS_TT | J166: TW002919001B | K166: =VLOOKUP(A166,[3]工作表4!$A$2:$F$455,6,0) -> 363164 | L166: 嘉南營銷處
A167: TW002927001B | B167: 中信冷凍電器行 | C167: 19710227 | D167: 19801699 | E167: 高屏營銷處 | F167: GWB | G167: 高屏 | H167: DEALER_TT | I167: DCS_TT | J167: TW002927001B | K167: =VLOOKUP(A167,[3]工作表4!$A$2:$F$455,6,0) -> 307094 | L167: 高屏營銷處
A168: TW002945001B | B168: 勁鋒電器行 | C168: 19641113 | D168: 87753771 | E168: 高屏營銷處 | F168: GWB | G168: 高屏 | H168: DEALER_TT | I168: DLC_TT | J168: TW002945001B | K168: =VLOOKUP(A168,[3]工作表4!$A$2:$F$455,6,0) -> 0 | L168: 高屏營銷處
A169: TW002946001B | B169: 佑均電器商行 | C169: 19800403 | D169: 98119827 | E169: 桃竹營銷處 | F169: DWB | G169: 桃竹 | H169: DEALER_TT | I169: DLC_TT | J169: TW002946001B
A170: TW002950001B | B170: 廣昌電器行 | C170: TW002950 | D170: 97885688 | E170: 台中營銷處 | F170: DJB | G170: 台中 | H170: DEALER_TT | I170: SPD_TT | J170: TW002950001B | K170: =VLOOKUP(A170,[3]工作表4!$A$2:$F$455,6,0) -> 1021990 | L170: 台中營銷處
A171: TW002952001B | B171: 廣駿電器行 | C171: 24925933 | D171: 24921827 | E171: 台中營銷處 | F171: DJB | G171: 台中 | H171: DEALER_TT | I171: DLC_TT | J171: TW002952001B | L171: 台中營銷處
A172: TW002960001B | B172: 正賢電器行 | C172: TW002960 | D172: 84042476 | E172: 台中營銷處 | F172: DJB | G172: 台中 | H172: DEALER_TT | I172: DLC_TT | J172: TW002960001B | K172: =VLOOKUP(A172,[3]工作表4!$A$2:$F$455,6,0) -> 70740 | L172: 台中營銷處
A173: TW002964001B | B173: 台灣樂金顯示科技股份有限公司 | C173: XXXXXXXX | D173: XXXXXXXX | E173: B2B2C | F173: B2B2C | G173: B2B2C | H173: B2B_TT | I173: B2B_TT
A174: TW002965001B | B174: 永定電器有限公司 | C174: 19781001 | D174: 96857734 | E174: 高屏營銷處 | F174: GWB | G174: 高屏 | H174: DEALER_TT | I174: DLC_TT | J174: TW002965001B | K174: =VLOOKUP(A174,[3]工作表4!$A$2:$F$455,6,0) -> 25760 | L174: 高屏營銷處
A175: TW002975001B | B175: 佳美電器行 | C175: 19550202 | D175: 06644845 | E175: 嘉南營銷處 | F175: DNB | G175: 嘉南 | H175: DEALER_TT | I175: DLC_TT
A176: TW002978001B | B176: 匯豐家電有限公司 | C176: 23383896 | D176: 23366784 | E176: 台中營銷處 | F176: DJB | G176: 台中 | H176: DEALER_TT | I176: DLC_TT | J176: TW002978001B | K176: =VLOOKUP(A176,[3]工作表4!$A$2:$F$455,6,0) -> 19776 | L176: 台中營銷處
A177: TW002989001B | B177: 隆松電器有限公司 | C177: 36663666 | D177: 69845546 | E177: 嘉南營銷處 | F177: DNB | G177: 嘉南 | H177: DEALER_TT | I177: DLC_TT | J177: TW002989001B | K177: =VLOOKUP(A177,[3]工作表4!$A$2:$F$455,6,0) -> 0 | L177: 嘉南營銷處
A178: TW002990001B | B178: 國際水電冷氣工程行 | C178: 19651008 | D178: 49776492 | E178: 桃竹營銷處 | F178: DWB | G178: 桃竹 | H178: DEALER_TT | I178: DCS_TT | K178: =VLOOKUP(A178,[3]工作表4!$A$2:$F$455,6,0) -> 481734 | L178: 桃竹營銷處
A179: TW002991001B | B179: 偉誠電器 | C179: 19740120 | D179: 96888413 | E179: 台北營銷處 | F179: TPH | G179: 台北 | H179: DEALER_TT | I179: DLC_TT
A180: TW002997001B | B180: 鎰銘電器有限公司 | C180: 19670216 | D180: 80103181 | E180: 台北營銷處 | F180: TPH | G180: 台北 | H180: DEALER_TT | I180: SPD_TT | J180: TW002997001B | K180: =VLOOKUP(A180,[3]工作表4!$A$2:$F$455,6,0) -> 3189866 | L180: 台北營銷處
A181: TW003001001B | B181: 銘盛電器有限公司 | C181: 19560401 | D181: 97184980 | E181: 台北營銷處 | F181: TPH | G181: 台北 | H181: DEALER_TT | I181: DLC_TT | J181: TW003001001B | L181: 台北營銷處
A182: TW003013001B | B182: 重慶國際有限公司 | C182: TW003013 | D182: 79955373 | E182: 台中營銷處 | F182: DJB | G182: 台中 | H182: DEALER_TT | I182: DCS_TT | J182: TW003013001B | L182: 台中營銷處
A183: TW003020002B | B183: 華笙音響企業有限公司 | C183: TW003020 | D183: 23688754 | E183: 台中營銷處 | F183: DJB | G183: 台中 | H183: DEALER_TT | I183: DLC_TT | J183: TW003020002B | K183: =VLOOKUP(A183,[3]工作表4!$A$2:$F$455,6,0) -> 0 | L183: 台中營銷處
A184: TW003023001B | B184: 翠亨企業股份有限公司 | C184: 19820909 | D184: 16129431 | E184: 高屏營銷處 | F184: GWB | G184: 高屏 | H184: DEALER_TT | I184: DCS_TT | J184: TW003023001B | K184: =VLOOKUP(A184,[3]工作表4!$A$2:$F$455,6,0) -> 667314 | L184: 高屏營銷處
A185: TW003029001B | B185: 大統電器行 | C185: 19581106 | D185: 02846102 | E185: 桃竹營銷處 | F185: DWB | G185: 桃竹 | H185: DEALER_TT | I185: DLC_TT | J185: TW003029001B | K185: =VLOOKUP(A185,[3]工作表4!$A$2:$F$455,6,0) -> 232032 | L185: 桃竹營銷處
A186: TW003034001B | B186: 九瑜電氣行 | C186: TW003034 | D186: 97887216 | E186: 台中營銷處 | F186: DJB | G186: 台中 | H186: DEALER_TT | I186: DLC_TT | J186: TW003034001B | L186: 台中營銷處
A187: TW003035001B | B187: 友信電器有限公司 | C187: 19571230 | D187: 97341659 | E187: 嘉南營銷處 | F187: DNB | G187: 嘉南 | H187: DEALER_TT | I187: DLC_TT | J187: TW003035001B | L187: 嘉南營銷處
A188: TW003040001B | B188: 悅鼎電器有限公司 | C188: 19690102 | D188: 84693028 | E188: 台北營銷處 | F188: TPH | G188: 台北 | H188: DEALER_TT | I188: SPD_TT | J188: TW003040001B | K188: =VLOOKUP(A188,[3]工作表4!$A$2:$F$455,6,0) -> 5961123 | L188: 台北營銷處
A189: TW003052001B | B189: 蓁筳園企業有限公司 | C189: XXXXXXXX | D189: XXXXXXXX | E189: B2B2C | F189: B2B2C | G189: B2B2C | H189: B2B_TT | I189: B2B_TT
A190: TW003052002B | B190: 蓁筳園企業有限公司 | C190: XXXXXXXX | D190: XXXXXXXX | E190: SAC | F190: ID&SAC | G190: SAC Sales | H190: B2B_TT | I190: CAC_TT
A191: TW003053001B | B191: 尚德師企業有限公司 | C191: 19630211 | D191: 12933843 | E191: 台北營銷處 | F191: TPH | G191: 台北 | H191: DEALER_TT | I191: DLC_TT | J191: TW003053001B | K191: =VLOOKUP(A191,[3]工作表4!$A$2:$F$455,6,0) -> 19525 | L191: 台北營銷處
A192: TW003054001B | B192: 上益 | C192: 19550615 | D192: 15719466 | E192: 嘉南營銷處 | F192: DNB | G192: 嘉南 | H192: DEALER_TT | I192: DLC_TT
A193: TW003071001B | B193: 泰昀企業有限公司 | C193: 19490915 | D193: 22866800 | E193: 台北營銷處 | F193: TPH | G193: 台北 | H193: DEALER_TT | I193: DCS_TT | J193: TW003071001B | K193: =VLOOKUP(A193,[3]工作表4!$A$2:$F$455,6,0) -> 519528 | L193: 台北營銷處
A194: TW003094001B | B194: 大銀幕視聽音響有限公司 | C194: TW003094 | D194: 97033415 | E194: 台中營銷處 | F194: DJB | G194: 台中 | H194: DEALER_TT | I194: DCS_TT | J194: TW003094001B | K194: =VLOOKUP(A194,[3]工作表4!$A$2:$F$455,6,0) -> 0 | L194: 台中營銷處
A195: TW003096001B | B195: 極品家電 | C195: 47226905 | D195: 47293663 | E195: 台中營銷處 | F195: DJB | G195: 台中 | H195: DEALER_TT | I195: DCS_TT
A196: TW003125001B | B196: 宏暉電器行 | C196: 19730421 | D196: 14194891 | E196: 高屏營銷處 | F196: GWB | G196: 高屏 | H196: DEALER_TT | I196: DLC_TT | J196: TW003125001B | K196: =VLOOKUP(A196,[3]工作表4!$A$2:$F$455,6,0) -> 71770 | L196: 高屏營銷處
A197: TW003126001B | B197: 東圓電器行 | C197: 19811028 | D197: 19656246 | E197: 桃竹營銷處 | F197: DWB | G197: 桃竹 | H197: DEALER_TT | I197: SPD_TT | J197: TW003126001B | K197: =VLOOKUP(A197,[3]工作表4!$A$2:$F$455,6,0) -> 0 | L197: 桃竹營銷處
A198: TW003127001B | B198: 富盟企業社 | C198: TW003127 | D198: 13400211 | E198: 台中營銷處 | F198: DJB | G198: 台中 | H198: DEALER_TT | I198: DCS_TT | J198: TW003127001B | K198: =VLOOKUP(A198,[3]工作表4!$A$2:$F$455,6,0) -> 497375 | L198: 台中營銷處
A199: TW003130001B | B199: 展碁國際股份有限公司 | C199: 20773257 | D199: 20773257 | E199: IT | F199: IT | G199: IT | H199: IT_TT | I199: IT_TT | J199: TW003130001B | K199: =VLOOKUP(A199,[3]工作表4!$A$2:$F$455,6,0) -> 85691238 | L199: IT
A200: TW003130002B | B200: 展碁國際股份有限公司 | C200: 20773257 | D200: 20773257 | E200: ID | F200: ID&SAC | G200: ID Sales | H200: B2B_TT | J200: TW003130002B | K200: =VLOOKUP(A200,[3]工作表4!$A$2:$F$455,6,0) -> 1487063 | L200: ID Sales Team
... 732 more rows

Sheet 預算表
A1: 注意事項：所有促銷活動獎勵辦法，依LG公司公告內容執行，需達成目標或協議後，方可取得下列協議獎勵。 LG公司同意之促銷活動皆須有[Promotion No.]，若無即為個人行為，LG公司概不予承認。
A3: 2022年03月 | B3: 台 灣 樂 金 電 器 股 份 有 限 公 司
A4: =確認code正確 ->  | B4: =店CODE -> 0 | D4: 密 碼
A5: 店Code： | C5: 第一組： | E5: =確認1 -> 0
A6: 店 名： | B6: =確認店 ->  | C6: 第二組： | E6: =確認2 -> 0
A7: =確認區 ->  | B7: =確認BG ->  | C7: =確認BG1 ->  | D7: =R好CODE1 ->  | E7: =R好CODE2 ->  | J7: =R好CODE3 -> 
A8: 店代號 | B8: Promotion No | C8: Promotion Name | D8: 起始日 | E8: 到期日 | F8: 獎勵內容 | G8: 型號 | H8: AMT/% | I8: 單價/%

Sheet BALANCE (hidden)
A1: Bill To Customer Code | B1: Bill To Customer Code | C1: Promotion No | D1: Promotion Name | E1: Start Date | F1: End Date | G1: Property Type | H1: Start Date | I1: End Date | J1: 內容 | K1: 店代號 | L1: 店名 | M1: NO | N1: AA(必填) | O1: AMT/% | P1: Description | Q1: Division | R1: Model | S1: Unit / % | T1: QTY / Sales | U1: Expected Cost
A2: =IFERROR(VLOOKUP(N2,多CODE,2,0),IF(RIGHT($B2,1)="H",LEFT($B2,11)&"B",IFERROR(VLOOKUP($B2,SHIP,3,0),$B2))) -> TW002769001B | B2: TW002769001B | C2: TT-TTSI-20211014-0003 | D2: ASPM2021092802-AC-Dealer-Travel Support-20211018-20220930 | E2: 2021-10-18 | F2: 2022-09-30 | G2: =MID(C2,4,4) -> TTSI | H2: =IF(OR($G2="NTSI",$G2="TTSI"),$E2,LEFT($E2,4)&"/"&MID($E2,5,2)&"/"&RIGHT($E2,2)) -> 2021-10-18 | I2: =IF(OR($G2="NTSI",$G2="TTSI"),$F2,LEFT($F2,4)&"/"&MID($F2,5,2)&"/"&RIGHT($F2,2)) -> 2022-09-30 | J2: 協議-冷氣-旅遊補助(達成900萬後，每達成180萬業績給予2.2%旅遊補助金)-20211018~20220930 | K2: TW002769001B | L2: 東農電器 | M2: TW | N2: 高屏營銷處 | O2: % | P2: 旅遊補助(達成900萬後，每達成180萬業績給予2.2%旅遊補助金) | R2: 冷氣 | T2: 0
A3: TW004758001B | B3: TW004758001B | C3: TT-TTSI-20211014-0003 | D3: ASPM2021092802-AC-Dealer-Travel Support-20211018-20220930 | E3: 2021-10-18 | F3: 2022-09-30 | G3: TTSI | H3: 2021-10-18 | I3: 2022-09-30 | J3: 協議-冷氣-旅遊補助(達成900萬後，每達成180萬業績給予2.2%旅遊補助金)-20211018~20220930 | K3: TW004758001B | L3: 同勝電器 | M3: TW | N3: 高屏營銷處 | O3: % | P3: 旅遊補助(達成900萬後，每達成180萬業績給予2.2%旅遊補助金) | R3: 冷氣 | T3: 0
A4: TW005662001B | B4: TW005662001B | C4: TT-TTSI-20211014-0003 | D4: ASPM2021092802-AC-Dealer-Travel Support-20211018-20220930 | E4: 2021-10-18 | F4: 2022-09-30 | G4: TTSI | H4: 2021-10-18 | I4: 2022-09-30 | J4: 協議-冷氣-旅遊補助(達成900萬後，每達成180萬業績給予2.2%旅遊補助金)-20211018~20220930 | K4: TW005662001B | L4: 統勝電器有限公司 | M4: TW | N4: D | O4: % | P4: 旅遊補助(達成900萬後，每達成180萬業績給予2.2%旅遊補助金) | R4: 冷氣 | T4: 0
A5: TW006379001B | B5: TW006379001B | C5: TT-TTSI-20211014-0003 | D5: ASPM2021092802-AC-Dealer-Travel Support-20211018-20220930 | E5: 2021-10-18 | F5: 2022-09-30 | G5: TTSI | H5: 2021-10-18 | I5: 2022-09-30 | J5: 協議-冷氣-旅遊補助(達成900萬後，每達成180萬業績給予2.2%旅遊補助金)-20211018~20220930 | K5: TW006379001B | L5: 東洋電器行 | M5: TW | N5: 台中營銷處 | O5: % | P5: 旅遊補助(達成900萬後，每達成180萬業績給予2.2%旅遊補助金) | R5: 冷氣 | T5: 0
A6: TW006823001B | B6: TW006823001B | C6: TT-TTSI-20211014-0003 | D6: ASPM2021092802-AC-Dealer-Travel Support-20211018-20220930 | E6: 2021-10-18 | F6: 2022-09-30 | G6: TTSI | H6: 2021-10-18 | I6: 2022-09-30 | J6: 協議-冷氣-旅遊補助(達成900萬後，每達成180萬業績給予2.2%旅遊補助金)-20211018~20220930 | K6: TW006823001B | L6: 米米實業有限公司 | M6: TW | N6: 台中營銷處 | O6: % | P6: 旅遊補助(達成900萬後，每達成180萬業績給予2.2%旅遊補助金) | R6: 冷氣 | T6: 0
A7: TW007112001B | B7: TW007112001B | C7: TT-TTSI-20211014-0003 | D7: ASPM2021092802-AC-Dealer-Travel Support-20211018-20220930 | E7: 2021-10-18 | F7: 2022-09-30 | G7: TTSI | H7: 2021-10-18 | I7: 2022-09-30 | J7: 協議-冷氣-旅遊補助(達成900萬後，每達成180萬業績給予2.2%旅遊補助金)-20211018~20220930 | K7: TW007112001B | L7: 桂安家電空調 | M7: TW | N7: 台中營銷處 | O7: % | P7: 旅遊補助(達成900萬後，每達成180萬業績給予2.2%旅遊補助金) | R7: 冷氣 | T7: 0
A8: TW002381001B | B8: TW002381001B | C8: TT-TTSI-20211014-0003 | D8: ASPM2021092802-AC-Dealer-Travel Support-20211018-20220930 | E8: 2021-10-18 | F8: 2022-09-30 | G8: TTSI | H8: 2021-10-18 | I8: 2022-09-30 | J8: 協議-冷氣-旅遊補助(達成900萬後，每達成180萬業績給予2.2%旅遊補助金)-20211018~20220930 | K8: TW002381001B | L8: 萬豐視聽 | M8: TW | N8: 台北營銷處 | O8: % | P8: 旅遊補助(達成900萬後，每達成180萬業績給予2.2%旅遊補助金) | R8: 冷氣 | T8: 0
A9: TW002143001B | B9: TW002143001B | C9: TT-TTSI-20211014-0003 | D9: ASPM2021092802-AC-Dealer-Travel Support-20211018-20220930 | E9: 2021-10-18 | F9: 2022-09-30 | G9: TTSI | H9: 2021-10-18 | I9: 2022-09-30 | J9: 協議-冷氣-旅遊補助(達成900萬後，每達成180萬業績給予2.2%旅遊補助金)-20211018~20220930 | K9: TW002143001B | L9: 全省電器 | M9: TW | N9: 嘉南營銷處 | O9: % | P9: 旅遊補助(達成900萬後，每達成180萬業績給予2.2%旅遊補助金) | R9: 冷氣 | T9: 0
A10: TW006897001B | B10: TW006897001B | C10: TT-TTSI-20211014-0003 | D10: ASPM2021092802-AC-Dealer-Travel Support-20211018-20220930 | E10: 2021-10-18 | F10: 2022-09-30 | G10: TTSI | H10: 2021-10-18 | I10: 2022-09-30 | J10: 協議-冷氣-旅遊補助(達成900萬後，每達成180萬業績給予2.2%旅遊補助金)-20211018~20220930 | K10: TW006897001B | L10: 姿芳科技有限公司 | M10: TW | N10: 桃竹營銷處 | O10: % | P10: 旅遊補助(達成900萬後，每達成180萬業績給予2.2%旅遊補助金) | R10: 冷氣 | T10: 0
A11: TW007003001B | B11: TW007003001B | C11: TT-TTSI-20211014-0003 | D11: ASPM2021092802-AC-Dealer-Travel Support-20211018-20220930 | E11: 2021-10-18 | F11: 2022-09-30 | G11: TTSI | H11: 2021-10-18 | I11: 2022-09-30 | J11: 協議-冷氣-旅遊補助(達成900萬後，每達成180萬業績給予2.2%旅遊補助金)-20211018~20220930 | K11: TW007003001B | L11: 東家電器行 | M11: TW | N11: 台中營銷處 | O11: % | P11: 旅遊補助(達成900萬後，每達成180萬業績給予2.2%旅遊補助金) | R11: 冷氣 | T11: 0
A12: TW007067001B | B12: TW007067001B | C12: TT-TTSI-20211217-0110 | D12: IT21127067I01-ALL-TW007067-SuperTarget-2022 | E12: 2022-01-01 | F12: 2022-12-31 | G12: TTSI | H12: 2022-01-01 | I12: 2022-12-31 | J12: 合約-全產品-超達成獎0.3%-01~12 | K12: TW007067001B | L12: 燦坤實業 | M12: TW | N12: IT | O12: % | P12: 超達成獎0.3% | R12: 全產品 | S12: 0.3
A13: TW002718001B | B13: TW002718001B | C13: TT-TTSI-20211217-0145 | D13: Contract-All-TW002718-Elife-YearTargetRebate-2022 | E13: 2022-01-01 | F13: 2022-12-31 | G13: TTSI | H13: 2022-01-01 | I13: 2022-12-31 | J13: 合約-全產品-年扣(14億以上4.1%)-01~12 | K13: TW002718001B | L13: 全國電子 | M13: TW | N13: MMCS-全國 | O13: % | P13: 年扣(14億以上4.1%) | R13: 全產品 | T13: 0
A14: TW005578001B | B14: TW005578001B | C14: TT-TTSI-20211222-0020 | D14: Contract-ALL-TW005578-YEAR-2022 | E14: 2022-01-01 | F14: 2022-12-31 | G14: TTSI | H14: 2022-01-01 | I14: 2022-12-31 | J14: 合約-全產品-年扣-01~12 | K14: TW005578001B | L14: 大同綜合訊電股份有限公司 | M14: TW | N14: MMCS-大同 | O14: % | P14: 年扣(1億2,000萬*0.8%，1億6,000萬*1%，2億*1.2%) | R14: 全產品 | T14: 0
A15: TW005578001B | B15: TW005578001B | C15: TT-TTSI-20211222-0023 | D15: Contract-ALL-TW005578-SEASON-2022-Q1 | E15: 2022-01-01 | F15: 2022-03-31 | G15: TTSI | H15: 2022-01-01 | I15: 2022-03-31 | J15: 合約-全產品-季獎勵-01~03 | K15: TW005578001B | L15: 大同綜合訊電股份有限公司 | M15: TW | N15: MMCS-大同 | O15: % | P15: 季獎勵(2,500萬*3%，4,500萬*4%，6,000萬*5%) | R15: 全產品 | T15: 0
A16: TW002525001B | B16: TW002525001H | C16: TT-TTSI-20211227-0188 | D16: Contract MMCSN2112J031-Black-TW002525-Year-2022 | E16: 2022-01-01 | F16: 2022-12-31 | G16: TTSI | H16: 2022-01-01 | I16: 2022-12-31 | J16: 合約-黑電-年扣(180M*0.4%,215M*0.6%,255M*0.8%,295M*1%)-01~12 | K16: TW002525001H | L16: 大潤發總公司 | M16: TW | N16: MMCS-大潤發 | O16: % | P16: 年扣(180M*0.4%,215M*0.6%,255M*0.8%,295M*1%) | R16: 電視 | T16: 0
A17: TW002525001B | B17: TW002525001H | C17: TT-TTSI-20211227-0189 | D17: Contract MMCSN2112J031-White-TW002525-Year-2022 | E17: 2022-01-01 | F17: 2022-12-31 | G17: TTSI | H17: 2022-01-01 | I17: 2022-12-31 | J17: 合約-白電-年扣(300M*1.55%,342M*1.75%,376M*1.95%,510M以上*2.15%)-01~12 | K17: TW002525001H | L17: 大潤發總公司 | M17: TW | N17: MMCS-大潤發 | O17: % | P17: 年扣(300M*1.55%,342M*1.75%,376M*1.95%,510M以上*2.15%) | R17: 冰箱 | T17: 0
A18: TW002525001B | B18: TW002525001H | C18: TT-TTSI-20211227-0189 | D18: Contract MMCSN2112J031-White-TW002525-Year-2022 | E18: 2022-01-01 | F18: 2022-12-31 | G18: TTSI | H18: 2022-01-01 | I18: 2022-12-31 | J18: 合約-白電-年扣(300M*1.55%,342M*1.75%,376M*1.95%,510M以上*2.15%)-01~12 | K18: TW002525001H | L18: 大潤發總公司 | M18: TW | N18: MMCS-大潤發 | O18: % | P18: 年扣(300M*1.55%,342M*1.75%,376M*1.95%,510M以上*2.15%) | R18: 洗衣機 | T18: 0
A19: TW002525001B | B19: TW002525001H | C19: TT-TTSI-20211227-0189 | D19: Contract MMCSN2112J031-White-TW002525-Year-2022 | E19: 2022-01-01 | F19: 2022-12-31 | G19: TTSI | H19: 2022-01-01 | I19: 2022-12-31 | J19: 合約-白電-年扣(300M*1.55%,342M*1.75%,376M*1.95%,510M以上*2.15%)-01~12 | K19: TW002525001H | L19: 大潤發總公司 | M19: TW | N19: MMCS-大潤發 | O19: % | P19: 年扣(300M*1.55%,342M*1.75%,376M*1.95%,510M以上*2.15%) | R19: 冷氣 | T19: 0
A20: TW002525001B | B20: TW002525001H | C20: TT-TTSI-20211227-0189 | D20: Contract MMCSN2112J031-White-TW002525-Year-2022 | E20: 2022-01-01 | F20: 2022-12-31 | G20: TTSI | H20: 2022-01-01 | I20: 2022-12-31 | J20: 合約-白電-年扣(300M*1.55%,342M*1.75%,376M*1.95%,510M以上*2.15%)-01~12 | K20: TW002525001H | L20: 大潤發總公司 | M20: TW | N20: MMCS-大潤發 | O20: % | P20: 年扣(300M*1.55%,342M*1.75%,376M*1.95%,510M以上*2.15%) | R20: 除濕/清淨機 | T20: 0
A21: TW002525001B | B21: TW002525001H | C21: TT-TTSI-20211227-0189 | D21: Contract MMCSN2112J031-White-TW002525-Year-2022 | E21: 2022-01-01 | F21: 2022-12-31 | G21: TTSI | H21: 2022-01-01 | I21: 2022-12-31 | J21: 合約-白電-年扣(300M*1.55%,342M*1.75%,376M*1.95%,510M以上*2.15%)-01~12 | K21: TW002525001H | L21: 大潤發總公司 | M21: TW | N21: MMCS-大潤發 | O21: % | P21: 年扣(300M*1.55%,342M*1.75%,376M*1.95%,510M以上*2.15%) | R21: 微波爐 | T21: 0
A22: TW002525001B | B22: TW002525001H | C22: TT-TTSI-20211227-0189 | D22: Contract MMCSN2112J031-White-TW002525-Year-2022 | E22: 2022-01-01 | F22: 2022-12-31 | G22: TTSI | H22: 2022-01-01 | I22: 2022-12-31 | J22: 合約-白電-年扣(300M*1.55%,342M*1.75%,376M*1.95%,510M以上*2.15%)-01~12 | K22: TW002525001H | L22: 大潤發總公司 | M22: TW | N22: MMCS-大潤發 | O22: % | P22: 年扣(300M*1.55%,342M*1.75%,376M*1.95%,510M以上*2.15%) | R22: 洗碗機 | T22: 0
A23: TW002525001B | B23: TW002525001H | C23: TT-TTSI-20211227-0190 | D23: Contract MMCSN2112J031-VCC-TW002525-Year-2022 | E23: 2022-01-01 | F23: 2022-12-31 | G23: TTSI | H23: 2022-01-01 | I23: 2022-12-31 | J23: 合約-小家電(吸塵器)-年扣(10M*1.5%,15M*1.7%,20M*1.9%,25M以上*2%)-01~12 | K23: TW002525001H | L23: 大潤發總公司 | M23: TW | N23: MMCS-大潤發 | O23: % | P23: 年扣(10M*1.5%,15M*1.7%,20M*1.9%,25M以上*2%) | R23: 吸塵器 | T23: 0
A24: TW002525001B | B24: TW002525001H | C24: TT-TTSI-20211227-0203 | D24: Contract MMCSN2112J031-ALL-TW002525-AccessoryContractNewOpenAchieveTargetSupport-2022 | E24: 2022-01-01 | F24: 2022-12-31 | G24: TTSI | H24: 2022-01-01 | I24: 2022-12-31 | J24: 合約-全產品-附約全店改裝目標達成補助(0.1%*預計開4家)-01~12 | K24: TW002525001H | L24: 大潤發總公司 | M24: TW | N24: MMCS-大潤發 | O24: % | P24: 附約全店改裝目標達成補助(0.1%*預計開4家) | R24: 全產品 | T24: 0
A25: TW007124001B | B25: TW007124001B | C25: TT-TTSI-20211228-0028 | D25: Contract MMCSN2112T011-All-TW007124-YEAR-2022 | E25: 2022-01-01 | F25: 2022-12-31 | G25: TTSI | H25: 2022-01-01 | I25: 2022-12-31 | J25: 合約-全產品-年扣(10M*0.5%,40M*1%,100M以上*1.5%)(賣場管理贊助費)-01~12 | K25: TW007124001B | L25: 特力屋 | M25: TW | N25: MMCS-特力屋 | O25: % | P25: 年扣(10M*0.5%,40M*1%,100M以上*1.5%)(賣場管理贊助費) | R25: 全產品 | T25: 0
A26: TW007124001B | B26: TW007124001B | C26: TT-TTSI-20211228-0029 | D26: Contract MMCSN2112T01-AC-TW007124-Sales Target-2022 | E26: 2022-01-01 | F26: 2022-12-31 | G26: TTSI | H26: 2022-01-01 | I26: 2022-12-31 | J26: 合約-冷氣-進貨達成獎勵(目標300台1%/500台以上1.5%)-01~12 | K26: TW007124001B | L26: 特力屋 | M26: TW | N26: MMCS-特力屋 | O26: % | P26: 進貨達成獎勵(目標300台1%/500台以上1.5%) | R26: 冷氣 | T26: 0
A27: TW002529001B | B27: TW002529001B | C27: TT-TTSI-20211228-0033 | D27: Contract-All-TW002529-YEAR-2022 | E27: 2022-01-01 | F27: 2022-12-31 | G27: TTSI | H27: 2022-01-01 | I27: 2022-12-31 | J27: 合約-全產品-年扣-01~12 | K27: TW002529001B | L27: 愛買吉安總公司 | M27: TW | N27: MMCS-愛買 | O27: % | P27: 年扣(8,000萬*1.2%，1億1,000萬*1.5%，1億5,000萬*1.8%) | R27: 全產品 | T27: 0
A28: TW002529001B | B28: TW002529001B | C28: TT-TTSI-20211228-0052 | D28: Contract-AC-TW002529-Sellin Target Rebate-2022 | E28: 2022-01-01 | F28: 2022-12-31 | G28: TTSI | H28: 2022-01-01 | I28: 2022-12-31 | J28: 協議-冷氣-年度目標達成進貨獎勵3%(目標300台)-01~12 | K28: TW002529001B | L28: 愛買吉安總公司 | M28: TW | N28: MMCS-愛買 | O28: % | P28: 年度目標達成進貨獎勵3%(目標300台) | R28: 冷氣 | T28: 0
A29: TW002758001B | B29: TW002758001B | C29: TT-TTSI-20211229-0001 | D29: DEPT2112D006-ALL-TW002758-SIAYearAchieveTargetSIARebate-2022 | E29: 2022-01-01 | F29: 2022-12-31 | G29: TTSI | H29: 2022-01-01 | I29: 2022-12-31 | J29: 協議-全產品-年度達成獎勵(70,000K:1.5%,80,000K:2%)-01~12 | K29: TW002758001B | L29: 秀翔 | M29: TW | N29: 百貨 | O29: % | P29: 年度達成獎勵(70,000K:1.5%,80,000K:2%) | R29: 全產品 | T29: 0
A30: TW002750001B | B30: TW002750001B | C30: TT-TTSI-20211229-0002 | D30: DEPT2112D006-ALL-TW002750-SIAYearAchieveTargetSIARebate-2022 | E30: 2022-01-01 | F30: 2022-12-31 | G30: TTSI | H30: 2022-01-01 | I30: 2022-12-31 | J30: 協議-全產品-年度達成獎勵(950,000K:5%,1,150,000K:6%)-01~12 | K30: TW002750001B | L30: 集雅社 | M30: TW | N30: 百貨 | O30: % | P30: 年度達成獎勵(950,000K:5%,1,150,000K:6%) | R30: 全產品 | T30: 0
A31: TW005281001B | B31: TW005281001B | C31: TT-TTSI-20211229-0003 | D31: DEPT2112D006-ALL-TW005281-SIAYearAchieveTargetSIARebate-2022 | E31: 2022-01-01 | F31: 2022-12-31 | G31: TTSI | H31: 2022-01-01 | I31: 2022-12-31 | J31: 協議-全產品-年度達成獎勵(60,000K:1%,70,000K:1.5%)(冷氣需IN50台OUT30)-01~12 | K31: TW005281001B | L31: 映象國際 | M31: TW | N31: 百貨 | O31: % | P31: 年度達成獎勵(60,000K:1%,70,000K:1.5%)(冷氣需IN50台OUT30) | R31: 全產品 | T31: 0
A32: TW007176002B | B32: TW007176002B | C32: TT-NTSI-20220106-0001 | D32: DWB2201C001-RF/WM-TW007176-Target Sellin Rebate-2022Q1.0107~0331 | E32: 2022-01-07 | F32: 2022-03-31 | G32: NTSI | H32: 2022-01-07 | I32: 2022-03-31 | J32: 公司-冰箱/洗衣機-季目標達成進貨獎勵4%(進貨目標360萬)-0107~0331 | K32: TW007176002B | L32: 雨林新零售 | M32: TW | N32: 桃竹營銷處 | O32: % | P32: 季目標達成進貨獎勵4%(進貨目標360萬) | R32: E523FR.ALBBTST | T32: 0
A33: TW007176002B | B33: TW007176002B | C33: TT-NTSI-20220106-0001 | D33: DWB2201C001-RF/WM-TW007176-Target Sellin Rebate-2022Q1.0107~0331 | E33: 2022-01-07 | F33: 2022-03-31 | G33: NTSI | H33: 2022-01-07 | I33: 2022-03-31 | J33: 公司-冰箱/洗衣機-季目標達成進貨獎勵4%(進貨目標360萬)-0107~0331 | K33: TW007176002B | L33: 雨林新零售 | M33: TW | N33: 桃竹營銷處 | O33: % | P33: 季目標達成進貨獎勵4%(進貨目標360萬) | R33: E523MR.ALBBTST | T33: 0
A34: TW007176002B | B34: TW007176002B | C34: TT-NTSI-20220106-0001 | D34: DWB2201C001-RF/WM-TW007176-Target Sellin Rebate-2022Q1.0107~0331 | E34: 2022-01-07 | F34: 2022-03-31 | G34: NTSI | H34: 2022-01-07 | I34: 2022-03-31 | J34: 公司-冰箱/洗衣機-季目標達成進貨獎勵4%(進貨目標360萬)-0107~0331 | K34: TW007176002B | L34: 雨林新零售 | M34: TW | N34: 桃竹營銷處 | O34: % | P34: 季目標達成進貨獎勵4%(進貨目標360萬) | R34: E523WR.ALWBTST | T34: 0
A35: TW007176002B | B35: TW007176002B | C35: TT-NTSI-20220106-0001 | D35: DWB2201C001-RF/WM-TW007176-Target Sellin Rebate-2022Q1.0107~0331 | E35: 2022-01-07 | F35: 2022-03-31 | G35: NTSI | H35: 2022-01-07 | I35: 2022-03-31 | J35: 公司-冰箱/洗衣機-季目標達成進貨獎勵4%(進貨目標360萬)-0107~0331 | K35: TW007176002B | L35: 雨林新零售 | M35: TW | N35: 桃竹營銷處 | O35: % | P35: 季目標達成進貨獎勵4%(進貨目標360萬) | R35: GI-HL450SV.DPZBTST | T35: 0
A36: TW007176002B | B36: TW007176002B | C36: TT-NTSI-20220106-0001 | D36: DWB2201C001-RF/WM-TW007176-Target Sellin Rebate-2022Q1.0107~0331 | E36: 2022-01-07 | F36: 2022-03-31 | G36: NTSI | H36: 2022-01-07 | I36: 2022-03-31 | J36: 公司-冰箱/洗衣機-季目標達成進貨獎勵4%(進貨目標360萬)-0107~0331 | K36: TW007176002B | L36: 雨林新零售 | M36: TW | N36: 桃竹營銷處 | O36: % | P36: 季目標達成進貨獎勵4%(進貨目標360萬) | R36: GN-HL567GB.ABMBTST | T36: 0
A37: TW007176002B | B37: TW007176002B | C37: TT-NTSI-20220106-0001 | D37: DWB2201C001-RF/WM-TW007176-Target Sellin Rebate-2022Q1.0107~0331 | E37: 2022-01-07 | F37: 2022-03-31 | G37: NTSI | H37: 2022-01-07 | I37: 2022-03-31 | J37: 公司-冰箱/洗衣機-季目標達成進貨獎勵4%(進貨目標360萬)-0107~0331 | K37: TW007176002B | L37: 雨林新零售 | M37: TW | N37: 桃竹營銷處 | O37: % | P37: 季目標達成進貨獎勵4%(進貨目標360萬) | R37: GN-HL567SV.APZBTST | T37: 0
A38: TW007176002B | B38: TW007176002B | C38: TT-NTSI-20220106-0001 | D38: DWB2201C001-RF/WM-TW007176-Target Sellin Rebate-2022Q1.0107~0331 | E38: 2022-01-07 | F38: 2022-03-31 | G38: NTSI | H38: 2022-01-07 | I38: 2022-03-31 | J38: 公司-冰箱/洗衣機-季目標達成進貨獎勵4%(進貨目標360萬)-0107~0331 | K38: TW007176002B | L38: 雨林新零售 | M38: TW | N38: 桃竹營銷處 | O38: % | P38: 季目標達成進貨獎勵4%(進貨目標360萬) | R38: GR-HL600MB.AMCBTST | T38: 0
A39: TW007176002B | B39: TW007176002B | C39: TT-NTSI-20220106-0001 | D39: DWB2201C001-RF/WM-TW007176-Target Sellin Rebate-2022Q1.0107~0331 | E39: 2022-01-07 | F39: 2022-03-31 | G39: NTSI | H39: 2022-01-07 | I39: 2022-03-31 | J39: 公司-冰箱/洗衣機-季目標達成進貨獎勵4%(進貨目標360萬)-0107~0331 | K39: TW007176002B | L39: 雨林新零售 | M39: TW | N39: 桃竹營銷處 | O39: % | P39: 季目標達成進貨獎勵4%(進貨目標360萬) | R39: GR-QBFL87BS.ASBBTST | T39: 0
A40: TW007176002B | B40: TW007176002B | C40: TT-NTSI-20220106-0001 | D40: DWB2201C001-RF/WM-TW007176-Target Sellin Rebate-2022Q1.0107~0331 | E40: 2022-01-07 | F40: 2022-03-31 | G40: NTSI | H40: 2022-01-07 | I40: 2022-03-31 | J40: 公司-冰箱/洗衣機-季目標達成進貨獎勵4%(進貨目標360萬)-0107~0331 | K40: TW007176002B | L40: 雨林新零售 | M40: TW | N40: 桃竹營銷處 | O40: % | P40: 季目標達成進貨獎勵4%(進貨目標360萬) | R40: GR-QPL88SV.ASTBTST | T40: 0
A41: TW007176002B | B41: TW007176002B | C41: TT-NTSI-20220106-0001 | D41: DWB2201C001-RF/WM-TW007176-Target Sellin Rebate-2022Q1.0107~0331 | E41: 2022-01-07 | F41: 2022-03-31 | G41: NTSI | H41: 2022-01-07 | I41: 2022-03-31 | J41: 公司-冰箱/洗衣機-季目標達成進貨獎勵4%(進貨目標360萬)-0107~0331 | K41: TW007176002B | L41: 雨林新零售 | M41: TW | N41: 桃竹營銷處 | O41: % | P41: 季目標達成進貨獎勵4%(進貨目標360萬) | R41: WD-S105VCW.ABWBTST | T41: 0
A42: TW007176002B | B42: TW007176002B | C42: TT-NTSI-20220106-0001 | D42: DWB2201C001-RF/WM-TW007176-Target Sellin Rebate-2022Q1.0107~0331 | E42: 2022-01-07 | F42: 2022-03-31 | G42: NTSI | H42: 2022-01-07 | I42: 2022-03-31 | J42: 公司-冰箱/洗衣機-季目標達成進貨獎勵4%(進貨目標360萬)-0107~0331 | K42: TW007176002B | L42: 雨林新零售 | M42: TW | N42: 桃竹營銷處 | O42: % | P42: 季目標達成進貨獎勵4%(進貨目標360萬) | R42: WD-S105VDW.ABWBTST | T42: 0
A43: TW007176002B | B43: TW007176002B | C43: TT-NTSI-20220106-0001 | D43: DWB2201C001-RF/WM-TW007176-Target Sellin Rebate-2022Q1.0107~0331 | E43: 2022-01-07 | F43: 2022-03-31 | G43: NTSI | H43: 2022-01-07 | I43: 2022-03-31 | J43: 公司-冰箱/洗衣機-季目標達成進貨獎勵4%(進貨目標360萬)-0107~0331 | K43: TW007176002B | L43: 雨林新零售 | M43: TW | N43: 桃竹營銷處 | O43: % | P43: 季目標達成進貨獎勵4%(進貨目標360萬) | R43: WD-S12GV.ASSBTST | T43: 0
A44: TW007176002B | B44: TW007176002B | C44: TT-NTSI-20220106-0001 | D44: DWB2201C001-RF/WM-TW007176-Target Sellin Rebate-2022Q1.0107~0331 | E44: 2022-01-07 | F44: 2022-03-31 | G44: NTSI | H44: 2022-01-07 | I44: 2022-03-31 | J44: 公司-冰箱/洗衣機-季目標達成進貨獎勵4%(進貨目標360萬)-0107~0331 | K44: TW007176002B | L44: 雨林新零售 | M44: TW | N44: 桃竹營銷處 | O44: % | P44: 季目標達成進貨獎勵4%(進貨目標360萬) | R44: WD-S15TBD.ABWBTST | T44: 0
A45: TW007176002B | B45: TW007176002B | C45: TT-NTSI-20220106-0001 | D45: DWB2201C001-RF/WM-TW007176-Target Sellin Rebate-2022Q1.0107~0331 | E45: 2022-01-07 | F45: 2022-03-31 | G45: NTSI | H45: 2022-01-07 | I45: 2022-03-31 | J45: 公司-冰箱/洗衣機-季目標達成進貨獎勵4%(進貨目標360萬)-0107~0331 | K45: TW007176002B | L45: 雨林新零售 | M45: TW | N45: 桃竹營銷處 | O45: % | P45: 季目標達成進貨獎勵4%(進貨目標360萬) | R45: WD-S15TBW.ABWBTST | T45: 0
A46: TW007176002B | B46: TW007176002B | C46: TT-NTSI-20220106-0001 | D46: DWB2201C001-RF/WM-TW007176-Target Sellin Rebate-2022Q1.0107~0331 | E46: 2022-01-07 | F46: 2022-03-31 | G46: NTSI | H46: 2022-01-07 | I46: 2022-03-31 | J46: 公司-冰箱/洗衣機-季目標達成進貨獎勵4%(進貨目標360萬)-0107~0331 | K46: TW007176002B | L46: 雨林新零售 | M46: TW | N46: 桃竹營銷處 | O46: % | P46: 季目標達成進貨獎勵4%(進貨目標360萬) | R46: WD-S17VBD.ABWBTST | T46: 0
A47: TW007176002B | B47: TW007176002B | C47: TT-NTSI-20220106-0001 | D47: DWB2201C001-RF/WM-TW007176-Target Sellin Rebate-2022Q1.0107~0331 | E47: 2022-01-07 | F47: 2022-03-31 | G47: NTSI | H47: 2022-01-07 | I47: 2022-03-31 | J47: 公司-冰箱/洗衣機-季目標達成進貨獎勵4%(進貨目標360萬)-0107~0331 | K47: TW007176002B | L47: 雨林新零售 | M47: TW | N47: 桃竹營銷處 | O47: % | P47: 季目標達成進貨獎勵4%(進貨目標360萬) | R47: WD-S18VBD.ABWBTST | T47: 0
A48: TW007176002B | B48: TW007176002B | C48: TT-NTSI-20220106-0001 | D48: DWB2201C001-RF/WM-TW007176-Target Sellin Rebate-2022Q1.0107~0331 | E48: 2022-01-07 | F48: 2022-03-31 | G48: NTSI | H48: 2022-01-07 | I48: 2022-03-31 | J48: 公司-冰箱/洗衣機-季目標達成進貨獎勵4%(進貨目標360萬)-0107~0331 | K48: TW007176002B | L48: 雨林新零售 | M48: TW | N48: 桃竹營銷處 | O48: % | P48: 季目標達成進貨獎勵4%(進貨目標360萬) | R48: WD-S18VCM.ASSBTST | T48: 0
A49: TW007176002B | B49: TW007176002B | C49: TT-NTSI-20220106-0001 | D49: DWB2201C001-RF/WM-TW007176-Target Sellin Rebate-2022Q1.0107~0331 | E49: 2022-01-07 | F49: 2022-03-31 | G49: NTSI | H49: 2022-01-07 | I49: 2022-03-31 | J49: 公司-冰箱/洗衣機-季目標達成進貨獎勵4%(進貨目標360萬)-0107~0331 | K49: TW007176002B | L49: 雨林新零售 | M49: TW | N49: 桃竹營銷處 | O49: % | P49: 季目標達成進貨獎勵4%(進貨目標360萬) | R49: WD-S18VCW.ABWBTST | T49: 0
A50: TW007176002B | B50: TW007176002B | C50: TT-NTSI-20220106-0001 | D50: DWB2201C001-RF/WM-TW007176-Target Sellin Rebate-2022Q1.0107~0331 | E50: 2022-01-07 | F50: 2022-03-31 | G50: NTSI | H50: 2022-01-07 | I50: 2022-03-31 | J50: 公司-冰箱/洗衣機-季目標達成進貨獎勵4%(進貨目標360萬)-0107~0331 | K50: TW007176002B | L50: 雨林新零售 | M50: TW | N50: 桃竹營銷處 | O50: % | P50: 季目標達成進貨獎勵4%(進貨目標360萬) | R50: WD-S19VBS.ABLBTST | T50: 0
A51: TW007176002B | B51: TW007176002B | C51: TT-NTSI-20220106-0001 | D51: DWB2201C001-RF/WM-TW007176-Target Sellin Rebate-2022Q1.0107~0331 | E51: 2022-01-07 | F51: 2022-03-31 | G51: NTSI | H51: 2022-01-07 | I51: 2022-03-31 | J51: 公司-冰箱/洗衣機-季目標達成進貨獎勵4%(進貨目標360萬)-0107~0331 | K51: TW007176002B | L51: 雨林新零售 | M51: TW | N51: 桃竹營銷處 | O51: % | P51: 季目標達成進貨獎勵4%(進貨目標360萬) | R51: WD-S19VBW.ABWBTST | T51: 0
A52: TW007176002B | B52: TW007176002B | C52: TT-NTSI-20220106-0001 | D52: DWB2201C001-RF/WM-TW007176-Target Sellin Rebate-2022Q1.0107~0331 | E52: 2022-01-07 | F52: 2022-03-31 | G52: NTSI | H52: 2022-01-07 | I52: 2022-03-31 | J52: 公司-冰箱/洗衣機-季目標達成進貨獎勵4%(進貨目標360萬)-0107~0331 | K52: TW007176002B | L52: 雨林新零售 | M52: TW | N52: 桃竹營銷處 | O52: % | P52: 季目標達成進貨獎勵4%(進貨目標360萬) | R52: WR-90VW.ABWBTST | T52: 0
A53: TW007176002B | B53: TW007176002B | C53: TT-NTSI-20220106-0001 | D53: DWB2201C001-RF/WM-TW007176-Target Sellin Rebate-2022Q1.0107~0331 | E53: 2022-01-07 | F53: 2022-03-31 | G53: NTSI | H53: 2022-01-07 | I53: 2022-03-31 | J53: 公司-冰箱/洗衣機-季目標達成進貨獎勵4%(進貨目標360萬)-0107~0331 | K53: TW007176002B | L53: 雨林新零售 | M53: TW | N53: 桃竹營銷處 | O53: % | P53: 季目標達成進貨獎勵4%(進貨目標360萬) | R53: WT-D200HV.ASSBTST | T53: 0
A54: TW007176002B | B54: TW007176002B | C54: TT-NTSI-20220106-0001 | D54: DWB2201C001-RF/WM-TW007176-Target Sellin Rebate-2022Q1.0107~0331 | E54: 2022-01-07 | F54: 2022-03-31 | G54: NTSI | H54: 2022-01-07 | I54: 2022-03-31 | J54: 公司-冰箱/洗衣機-季目標達成進貨獎勵4%(進貨目標360萬)-0107~0331 | K54: TW007176002B | L54: 雨林新零售 | M54: TW | N54: 桃竹營銷處 | O54: % | P54: 季目標達成進貨獎勵4%(進貨目標360萬) | R54: WT-D200HW.ABWBTST | T54: 0
A55: TW007176002B | B55: TW007176002B | C55: TT-NTSI-20220106-0001 | D55: DWB2201C001-RF/WM-TW007176-Target Sellin Rebate-2022Q1.0107~0331 | E55: 2022-01-07 | F55: 2022-03-31 | G55: NTSI | H55: 2022-01-07 | I55: 2022-03-31 | J55: 公司-冰箱/洗衣機-季目標達成進貨獎勵4%(進貨目標360萬)-0107~0331 | K55: TW007176002B | L55: 雨林新零售 | M55: TW | N55: 桃竹營銷處 | O55: % | P55: 季目標達成進貨獎勵4%(進貨目標360萬) | R55: WT-D250HB.ABLBTST | T55: 0
A56: TW007176002B | B56: TW007176002B | C56: TT-NTSI-20220106-0001 | D56: DWB2201C001-RF/WM-TW007176-Target Sellin Rebate-2022Q1.0107~0331 | E56: 2022-01-07 | F56: 2022-03-31 | G56: NTSI | H56: 2022-01-07 | I56: 2022-03-31 | J56: 公司-冰箱/洗衣機-季目標達成進貨獎勵4%(進貨目標360萬)-0107~0331 | K56: TW007176002B | L56: 雨林新零售 | M56: TW | N56: 桃竹營銷處 | O56: % | P56: 季目標達成進貨獎勵4%(進貨目標360萬) | R56: WT-D250HV.ASSBTST | T56: 0
A57: TW007176002B | B57: TW007176002B | C57: TT-NTSI-20220106-0001 | D57: DWB2201C001-RF/WM-TW007176-Target Sellin Rebate-2022Q1.0107~0331 | E57: 2022-01-07 | F57: 2022-03-31 | G57: NTSI | H57: 2022-01-07 | I57: 2022-03-31 | J57: 公司-冰箱/洗衣機-季目標達成進貨獎勵4%(進貨目標360萬)-0107~0331 | K57: TW007176002B | L57: 雨林新零售 | M57: TW | N57: 桃竹營銷處 | O57: % | P57: 季目標達成進貨獎勵4%(進貨目標360萬) | R57: WT-D250HW.ABWBTST | T57: 0
A58: TW007176002B | B58: TW007176002B | C58: TT-NTSI-20220106-0001 | D58: DWB2201C001-RF/WM-TW007176-Target Sellin Rebate-2022Q1.0107~0331 | E58: 2022-01-07 | F58: 2022-03-31 | G58: NTSI | H58: 2022-01-07 | I58: 2022-03-31 | J58: 公司-冰箱/洗衣機-季目標達成進貨獎勵4%(進貨目標360萬)-0107~0331 | K58: TW007176002B | L58: 雨林新零售 | M58: TW | N58: 桃竹營銷處 | O58: % | P58: 季目標達成進貨獎勵4%(進貨目標360萬) | R58: WT-SD200AHW.ABWBTST | T58: 0
A59: TW007176002B | B59: TW007176002B | C59: TT-NTSI-20220106-0001 | D59: DWB2201C001-RF/WM-TW007176-Target Sellin Rebate-2022Q1.0107~0331 | E59: 2022-01-07 | F59: 2022-03-31 | G59: NTSI | H59: 2022-01-07 | I59: 2022-03-31 | J59: 公司-冰箱/洗衣機-季目標達成進貨獎勵4%(進貨目標360萬)-0107~0331 | K59: TW007176002B | L59: 雨林新零售 | M59: TW | N59: 桃竹營銷處 | O59: % | P59: 季目標達成進貨獎勵4%(進貨目標360萬) | R59: WR-16HW.ABWBTST | T59: 0
A60: TW007176002B | B60: TW007176002B | C60: TT-NTSI-20220106-0001 | D60: DWB2201C001-RF/WM-TW007176-Target Sellin Rebate-2022Q1.0107~0331 | E60: 2022-01-07 | F60: 2022-03-31 | G60: NTSI | H60: 2022-01-07 | I60: 2022-03-31 | J60: 公司-冰箱/洗衣機-季目標達成進貨獎勵4%(進貨目標360萬)-0107~0331 | K60: TW007176002B | L60: 雨林新零售 | M60: TW | N60: 桃竹營銷處 | O60: % | P60: 季目標達成進貨獎勵4%(進貨目標360萬) | R60: GR-QL66MB.AMCBTST | T60: 0
A61: TW007176002B | B61: TW007176002B | C61: TT-NTSI-20220106-0001 | D61: DWB2201C001-RF/WM-TW007176-Target Sellin Rebate-2022Q1.0107~0331 | E61: 2022-01-07 | F61: 2022-03-31 | G61: NTSI | H61: 2022-01-07 | I61: 2022-03-31 | J61: 公司-冰箱/洗衣機-季目標達成進貨獎勵4%(進貨目標360萬)-0107~0331 | K61: TW007176002B | L61: 雨林新零售 | M61: TW | N61: 桃竹營銷處 | O61: % | P61: 季目標達成進貨獎勵4%(進貨目標360萬) | R61: E523IR.ABWBTST | T61: 0
A62: TW007176002B | B62: TW007176002B | C62: TT-NTSI-20220106-0001 | D62: DWB2201C001-RF/WM-TW007176-Target Sellin Rebate-2022Q1.0107~0331 | E62: 2022-01-07 | F62: 2022-03-31 | G62: NTSI | H62: 2022-01-07 | I62: 2022-03-31 | J62: 公司-冰箱/洗衣機-季目標達成進貨獎勵4%(進貨目標360萬)-0107~0331 | K62: TW007176002B | L62: 雨林新零售 | M62: TW | N62: 桃竹營銷處 | O62: % | P62: 季目標達成進貨獎勵4%(進貨目標360萬) | R62: GR-DL81SV.APZBTST | T62: 0
A63: TW007176002B | B63: TW007176002B | C63: TT-NTSI-20220106-0001 | D63: DWB2201C001-RF/WM-TW007176-Target Sellin Rebate-2022Q1.0107~0331 | E63: 2022-01-07 | F63: 2022-03-31 | G63: NTSI | H63: 2022-01-07 | I63: 2022-03-31 | J63: 公司-冰箱/洗衣機-季目標達成進貨獎勵4%(進貨目標360萬)-0107~0331 | K63: TW007176002B | L63: 雨林新零售 | M63: TW | N63: 桃竹營銷處 | O63: % | P63: 季目標達成進貨獎勵4%(進貨目標360萬) | R63: B723MR.ALMBTST | T63: 0
A64: TW007176002B | B64: TW007176002B | C64: TT-NTSI-20220106-0001 | D64: DWB2201C001-RF/WM-TW007176-Target Sellin Rebate-2022Q1.0107~0331 | E64: 2022-01-07 | F64: 2022-03-31 | G64: NTSI | H64: 2022-01-07 | I64: 2022-03-31 | J64: 公司-冰箱/洗衣機-季目標達成進貨獎勵4%(進貨目標360萬)-0107~0331 | K64: TW007176002B | L64: 雨林新零售 | M64: TW | N64: 桃竹營銷處 | O64: % | P64: 季目標達成進貨獎勵4%(進貨目標360萬) | R64: WD-S1916B.ABLBTST | T64: 0
A65: TW007176002B | B65: TW007176002B | C65: TT-NTSI-20220106-0001 | D65: DWB2201C001-RF/WM-TW007176-Target Sellin Rebate-2022Q1.0107~0331 | E65: 2022-01-07 | F65: 2022-03-31 | G65: NTSI | H65: 2022-01-07 | I65: 2022-03-31 | J65: 公司-冰箱/洗衣機-季目標達成進貨獎勵4%(進貨目標360萬)-0107~0331 | K65: TW007176002B | L65: 雨林新零售 | M65: TW | N65: 桃竹營銷處 | O65: % | P65: 季目標達成進貨獎勵4%(進貨目標360萬) | R65: WD-S1916W.ABWBTST | T65: 0
A66: =IFERROR(VLOOKUP(N66,多CODE,2,0),IF(RIGHT($B66,1)="H",LEFT($B66,11)&"B",IFERROR(VLOOKUP($B66,SHIP,3,0),$B66))) -> TW007176002B | B66: TW007176002B | C66: TT-NTSI-20220106-0001 | D66: DWB2201C001-RF/WM-TW007176-Target Sellin Rebate-2022Q1.0107~0331 | E66: 2022-01-07 | F66: 2022-03-31 | G66: =MID(C66,4,4) -> NTSI | H66: =IF(OR($G66="NTSI",$G66="TTSI"),$E66,LEFT($E66,4)&"/"&MID($E66,5,2)&"/"&RIGHT($E66,2)) -> 2022-01-07 | I66: =IF(OR($G66="NTSI",$G66="TTSI"),$F66,LEFT($F66,4)&"/"&MID($F66,5,2)&"/"&RIGHT($F66,2)) -> 2022-03-31 | J66: 公司-冰箱/洗衣機-季目標達成進貨獎勵4%(進貨目標360萬)-0107~0331 | K66: TW007176002B | L66: 雨林新零售 | M66: TW | N66: 桃竹營銷處 | O66: % | P66: 季目標達成進貨獎勵4%(進貨目標360萬) | R66: WD-S90VDW.ABWBTST | T66: 0
A67: TW007176002B | B67: TW007176002B | C67: TT-NTSI-20220106-0001 | D67: DWB2201C001-RF/WM-TW007176-Target Sellin Rebate-2022Q1.0107~0331 | E67: 2022-01-07 | F67: 2022-03-31 | G67: NTSI | H67: 2022-01-07 | I67: 2022-03-31 | J67: 公司-冰箱/洗衣機-季目標達成進貨獎勵4%(進貨目標360萬)-0107~0331 | K67: TW007176002B | L67: 雨林新零售 | M67: TW | N67: 桃竹營銷處 | O67: % | P67: 季目標達成進貨獎勵4%(進貨目標360萬) | R67: GR-QPL88BS.ASBBTST | T67: 0
A68: TW007176002B | B68: TW007176002B | C68: TT-NTSI-20220107-0001 | D68: DWB2201C002-TV-TW007176-Target Sellin Rebate-2022Q1.0108~0331 | E68: 2022-01-08 | F68: 2022-03-31 | G68: NTSI | H68: 2022-01-08 | I68: 2022-03-31 | J68: 公司-電視-季目標達成進貨獎勵5%(進貨目標300萬)-0108~0331 | K68: TW007176002B | L68: 雨林新零售 | M68: TW | N68: 桃竹營銷處 | O68: % | P68: 季目標達成進貨獎勵5%(進貨目標300萬) | R68: 電視 | T68: 0
A69: TW004399001B | B69: TW004399001B | C69: TT-NTSI-20220111-0016 | D69: TPH2201A004-TV-TW004399-Sale target-2022Q1 | E69: 2022-01-12 | F69: 2022-03-31 | G69: NTSI | H69: 2022-01-12 | I69: 2022-03-31 | J69: 公司-電視-季進貨達成獎勵(5M*1%)-01~03 | K69: TW004399001B | L69: 祥建科技 | M69: TW | N69: 台北營銷處 | O69: % | P69: 季進貨達成獎勵(5M*1%) | R69: 電視 | T69: 0
A70: TW004399001B | B70: TW004399001B | C70: TT-NTSI-20220111-0019 | D70: TPH2201A004-WM-TW004399-Sale target-2022Q1 | E70: 2022-01-12 | F70: 2022-03-31 | G70: NTSI | H70: 2022-01-12 | I70: 2022-03-31 | J70: 公司-洗衣機-季進貨達成獎勵(8.1M*1%)-01~03 | K70: TW004399001B | L70: 祥建科技 | M70: TW | N70: 台北營銷處 | O70: % | P70: 季進貨達成獎勵(8.1M*1%) | R70: 洗衣機 | T70: 0
A71: TW004399001B | B71: TW004399001B | C71: TT-NTSI-20220111-0022 | D71: TPH2201A004-AC.DLT.VCC-TW004399-Sale target-2022Q1 | E71: 2022-01-12 | F71: 2022-03-31 | G71: NTSI | H71: 2022-01-12 | I71: 2022-03-31 | J71: 公司-小家電及冷氣-季進貨達成獎勵(1.2M*1%)-01~03 | K71: TW004399001B | L71: 祥建科技 | M71: TW | N71: 台北營銷處 | O71: % | P71: 季進貨達成獎勵(1.2M*1%) | R71: 冷氣 | T71: 0
A72: TW004399001B | B72: TW004399001B | C72: TT-NTSI-20220111-0022 | D72: TPH2201A004-AC.DLT.VCC-TW004399-Sale target-2022Q1 | E72: 2022-01-12 | F72: 2022-03-31 | G72: NTSI | H72: 2022-01-12 | I72: 2022-03-31 | J72: 公司-小家電及冷氣-季進貨達成獎勵(1.2M*1%)-01~03 | K72: TW004399001B | L72: 祥建科技 | M72: TW | N72: 台北營銷處 | O72: % | P72: 季進貨達成獎勵(1.2M*1%) | R72: 除濕/清淨機 | T72: 0
A73: TW004399001B | B73: TW004399001B | C73: TT-NTSI-20220111-0022 | D73: TPH2201A004-AC.DLT.VCC-TW004399-Sale target-2022Q1 | E73: 2022-01-12 | F73: 2022-03-31 | G73: NTSI | H73: 2022-01-12 | I73: 2022-03-31 | J73: 公司-小家電及冷氣-季進貨達成獎勵(1.2M*1%)-01~03 | K73: TW004399001B | L73: 祥建科技 | M73: TW | N73: 台北營銷處 | O73: % | P73: 季進貨達成獎勵(1.2M*1%) | R73: 吸塵器 | T73: 0
A74: TW004399001B | B74: TW004399001B | C74: TT-NTSI-20220111-0022 | D74: TPH2201A004-AC.DLT.VCC-TW004399-Sale target-2022Q1 | E74: 2022-01-12 | F74: 2022-03-31 | G74: NTSI | H74: 2022-01-12 | I74: 2022-03-31 | J74: 公司-小家電及冷氣-季進貨達成獎勵(1.2M*1%)-01~03 | K74: TW004399001B | L74: 祥建科技 | M74: TW | N74: 台北營銷處 | O74: % | P74: 季進貨達成獎勵(1.2M*1%) | R74: 微波爐 | T74: 0
A75: TW004399001B | B75: TW004399001B | C75: TT-NTSI-20220111-0022 | D75: TPH2201A004-AC.DLT.VCC-TW004399-Sale target-2022Q1 | E75: 2022-01-12 | F75: 2022-03-31 | G75: NTSI | H75: 2022-01-12 | I75: 2022-03-31 | J75: 公司-小家電及冷氣-季進貨達成獎勵(1.2M*1%)-01~03 | K75: TW004399001B | L75: 祥建科技 | M75: TW | N75: 台北營銷處 | O75: % | P75: 季進貨達成獎勵(1.2M*1%) | R75: 洗碗機 | T75: 0
A76: TW004399001B | B76: TW004399001B | C76: TT-NTSI-20220111-0063 | D76: TPH2201A004-RF-TW004399-Sale target-2022Q1 | E76: 2022-01-12 | F76: 2022-03-31 | G76: NTSI | H76: 2022-01-12 | I76: 2022-03-31 | J76: 公司-冰箱-季進貨達成獎勵(1.8M*1%)-01~03 | K76: TW004399001B | L76: 祥建科技 | M76: TW | N76: 台北營銷處 | O76: % | P76: 季進貨達成獎勵(1.8M*1%) | R76: 冰箱 | T76: 0
A77: TW006857001B | B77: TW006857001B | C77: TT-NTSI-20200514-0028 | D77: TPB2004A022-TW006857-RentalFeeSupport-Y2-202203 | E77: 2022-03-01 | F77: 2022-03-31 | G77: NTSI | H77: 2022-03-01 | I77: 2022-03-31 | J77: 協議-誠鴻汐止大同路分店租金補助-03.03-2Q-L(基本目標每月達50萬未稅，補助上限1.75萬含稅，Year2) | K77: TW006857001B | L77: 誠鴻電器 | M77: TW | N77: 台北營銷處 | O77: % | P77: 誠鴻汐止大同路分店租金補助(基本目標每月達50萬未稅，補助上限1.75萬含稅，Year2) | R77: 全產品 | T77: 0
A78: TW007094001B | B78: TW007094001B | C78: TT-NTSI-20210323-0027 | D78: YLB21030006-All-TW007094-RentalFeeSupport-Y1-202203 | E78: 2022-03-01 | F78: 2022-03-31 | G78: NTSI | H78: 2022-03-01 | I78: 2022-03-31 | J78: 協議-全產品-遠東花蓮分店租金補助(基本目標每月達50萬未稅，補助上限32,500含稅，Year1)-03-03 | K78: TW007094001B | L78: 遠東空調家電有限公司 | M78: TW | N78: 台北營銷處 | O78: % | P78: 遠東花蓮分店租金補助(基本目標每月達50萬未稅，補助上限32,500含稅，Year1) | R78: 全產品 | T78: 0
A79: TW007112001B | B79: TW007112001B | C79: TT-NTSI-20210324-0007 | D79: DJB1910C0099-ALL-TW007112-TW007112-Rental Fee Year 3-202203 | E79: 2022-03-01 | F79: 2022-03-31 | G79: NTSI | H79: 2022-03-01 | I79: 2022-03-31 | J79: 協議-全產品 第三年租金補助(每月達50萬以上0.625%,上限為7千5 (含))-03.03 | K79: TW007112001B | L79: 桂安家電空調 | M79: TW | N79: 台中營銷處 | O79: % | P79: 第三年租金補助(每月達50萬以上0.625%,上限為7千5 (含)) | R79: 全產品 | T79: 0
A80: TW002291001B | B80: TW002291001B | C80: TT-NTSI-20210616-0008 | D80: DWB2106X05-ALL-TW002291-RentFee-202203 | E80: 2022-03-01 | F80: 2022-03-31 | G80: NTSI | H80: 2022-03-01 | I80: 2022-03-31 | J80: 公司-全產品-大江租金補助(未達150萬3.5%、達150萬~未滿180萬4%、180萬以上4.3%)-03~03 | K80: TW002291001B | L80: 金一電器 | M80: TW | N80: 桃竹營銷處 | O80: % | P80: 大江租金補助(未達150萬3.5%、達150萬~未滿180萬4%、180萬以上4.3%) | R80: 全產品 | T80: 0
A81: TW004758001B | B81: TW004758001B | C81: TT-NTSI-20210929-0035 | D81: GWB2103D027-ALL-TW004758-5662-RentalFeeSupport-202203 | E81: 2022-03-01 | F81: 2022-03-31 | G81: NTSI | H81: 2022-03-01 | I81: 2022-03-31 | J81: 協議-家電-統勝同勝左營HOLA分店租金補助(目標合併需達50萬未稅,補助上限5萬含稅)-03~03-非制式分店辦法 | K81: TW004758001B | L81: 同勝電器 | M81: TW | N81: 高屏營銷處 | O81: % | P81: 統勝同勝左營HOLA分店租金補助(目標合併需達50萬未稅,補助上限5萬含稅) | R81: 全產品 | T81: 0
A82: TW005662001B | B82: TW005662001B | C82: TT-NTSI-20210929-0035 | D82: GWB2103D027-ALL-TW004758-5662-RentalFeeSupport-202203 | E82: 2022-03-01 | F82: 2022-03-31 | G82: NTSI | H82: 2022-03-01 | I82: 2022-03-31 | J82: 協議-家電-統勝同勝左營HOLA分店租金補助(目標合併需達50萬未稅,補助上限5萬含稅)-03~03-非制式分店辦法 | K82: TW005662001B | L82: 統勝電器有限公司 | M82: TW | N82: D | O82: % | P82: 統勝同勝左營HOLA分店租金補助(目標合併需達50萬未稅,補助上限5萬含稅) | R82: 全產品 | T82: 0
A83: DCS_TT | B83: DCS_TT | C83: TT-NTSI-20211213-0016 | D83: HETV20211208-TV-Dealer-Qty SIA SpecificModel-202203 | E83: 2022-03-01 | F83: 2022-03-31 | G83: NTSI | H83: 2022-03-01 | I83: 2022-03-31 | J83: 公司-電視-進獎台折(3台1%,7台2%,10台3%)(4K季級不季獎)-03~03 | K83: DCS_TT | L83: DCS_TT | M83: TW | N83: DCS_TT | O83: % | P83: 進獎台折(3台1%,7台2%,10台3%)(4K季級不季獎) | R83: 49NANO81WNA.ATT | T83: 0
A84: DCS_TT | B84: DCS_TT | C84: TT-NTSI-20211213-0016 | D84: HETV20211208-TV-Dealer-Qty SIA SpecificModel-202203 | E84: 2022-03-01 | F84: 2022-03-31 | G84: NTSI | H84: 2022-03-01 | I84: 2022-03-31 | J84: 公司-電視-進獎台折(3台1%,7台2%,10台3%)(4K季級不季獎)-03~03 | K84: DCS_TT | L84: DCS_TT | M84: TW | N84: DCS_TT | O84: % | P84: 進獎台折(3台1%,7台2%,10台3%)(4K季級不季獎) | R84: 55NANO81WNA.ATT | T84: 0
A85: DCS_TT | B85: DCS_TT | C85: TT-NTSI-20211213-0016 | D85: HETV20211208-TV-Dealer-Qty SIA SpecificModel-202203 | E85: 2022-03-01 | F85: 2022-03-31 | G85: NTSI | H85: 2022-03-01 | I85: 2022-03-31 | J85: 公司-電視-進獎台折(3台1%,7台2%,10台3%)(4K季級不季獎)-03~03 | K85: DCS_TT | L85: DCS_TT | M85: TW | N85: DCS_TT | O85: % | P85: 進獎台折(3台1%,7台2%,10台3%)(4K季級不季獎) | R85: 55UN8000PWA.ATT | T85: 0
A86: DCS_TT | B86: DCS_TT | C86: TT-NTSI-20211213-0016 | D86: HETV20211208-TV-Dealer-Qty SIA SpecificModel-202203 | E86: 2022-03-01 | F86: 2022-03-31 | G86: NTSI | H86: 2022-03-01 | I86: 2022-03-31 | J86: 公司-電視-進獎台折(3台1%,7台2%,10台3%)(4K季級不季獎)-03~03 | K86: DCS_TT | L86: DCS_TT | M86: TW | N86: DCS_TT | O86: % | P86: 進獎台折(3台1%,7台2%,10台3%)(4K季級不季獎) | R86: 55UN8100PWA.ATT | T86: 0
A87: DCS_TT | B87: DCS_TT | C87: TT-NTSI-20211213-0016 | D87: HETV20211208-TV-Dealer-Qty SIA SpecificModel-202203 | E87: 2022-03-01 | F87: 2022-03-31 | G87: NTSI | H87: 2022-03-01 | I87: 2022-03-31 | J87: 公司-電視-進獎台折(3台1%,7台2%,10台3%)(4K季級不季獎)-03~03 | K87: DCS_TT | L87: DCS_TT | M87: TW | N87: DCS_TT | O87: % | P87: 進獎台折(3台1%,7台2%,10台3%)(4K季級不季獎) | R87: 65NANO81WNA.ATT | T87: 0
A88: DCS_TT | B88: DCS_TT | C88: TT-NTSI-20211213-0016 | D88: HETV20211208-TV-Dealer-Qty SIA SpecificModel-202203 | E88: 2022-03-01 | F88: 2022-03-31 | G88: NTSI | H88: 2022-03-01 | I88: 2022-03-31 | J88: 公司-電視-進獎台折(3台1%,7台2%,10台3%)(4K季級不季獎)-03~03 | K88: DCS_TT | L88: DCS_TT | M88: TW | N88: DCS_TT | O88: % | P88: 進獎台折(3台1%,7台2%,10台3%)(4K季級不季獎) | R88: 65NANO91WNA.ATT | T88: 0
A89: DCS_TT | B89: DCS_TT | C89: TT-NTSI-20211213-0016 | D89: HETV20211208-TV-Dealer-Qty SIA SpecificModel-202203 | E89: 2022-03-01 | F89: 2022-03-31 | G89: NTSI | H89: 2022-03-01 | I89: 2022-03-31 | J89: 公司-電視-進獎台折(3台1%,7台2%,10台3%)(4K季級不季獎)-03~03 | K89: DCS_TT | L89: DCS_TT | M89: TW | N89: DCS_TT | O89: % | P89: 進獎台折(3台1%,7台2%,10台3%)(4K季級不季獎) | R89: 65NANO95WNA.ATT | T89: 0
A90: DCS_TT | B90: DCS_TT | C90: TT-NTSI-20211213-0016 | D90: HETV20211208-TV-Dealer-Qty SIA SpecificModel-202203 | E90: 2022-03-01 | F90: 2022-03-31 | G90: NTSI | H90: 2022-03-01 | I90: 2022-03-31 | J90: 公司-電視-進獎台折(3台1%,7台2%,10台3%)(4K季級不季獎)-03~03 | K90: DCS_TT | L90: DCS_TT | M90: TW | N90: DCS_TT | O90: % | P90: 進獎台折(3台1%,7台2%,10台3%)(4K季級不季獎) | R90: 65UN8000PWA.ATT | T90: 0
A91: DCS_TT | B91: DCS_TT | C91: TT-NTSI-20211213-0016 | D91: HETV20211208-TV-Dealer-Qty SIA SpecificModel-202203 | E91: 2022-03-01 | F91: 2022-03-31 | G91: NTSI | H91: 2022-03-01 | I91: 2022-03-31 | J91: 公司-電視-進獎台折(3台1%,7台2%,10台3%)(4K季級不季獎)-03~03 | K91: DCS_TT | L91: DCS_TT | M91: TW | N91: DCS_TT | O91: % | P91: 進獎台折(3台1%,7台2%,10台3%)(4K季級不季獎) | R91: 65UN8100PWA.ATT | T91: 0
A92: DCS_TT | B92: DCS_TT | C92: TT-NTSI-20211213-0016 | D92: HETV20211208-TV-Dealer-Qty SIA SpecificModel-202203 | E92: 2022-03-01 | F92: 2022-03-31 | G92: NTSI | H92: 2022-03-01 | I92: 2022-03-31 | J92: 公司-電視-進獎台折(3台1%,7台2%,10台3%)(4K季級不季獎)-03~03 | K92: DCS_TT | L92: DCS_TT | M92: TW | N92: DCS_TT | O92: % | P92: 進獎台折(3台1%,7台2%,10台3%)(4K季級不季獎) | R92: 75NANO91WNA.ATT | T92: 0
A93: DCS_TT | B93: DCS_TT | C93: TT-NTSI-20211213-0016 | D93: HETV20211208-TV-Dealer-Qty SIA SpecificModel-202203 | E93: 2022-03-01 | F93: 2022-03-31 | G93: NTSI | H93: 2022-03-01 | I93: 2022-03-31 | J93: 公司-電視-進獎台折(3台1%,7台2%,10台3%)(4K季級不季獎)-03~03 | K93: DCS_TT | L93: DCS_TT | M93: TW | N93: DCS_TT | O93: % | P93: 進獎台折(3台1%,7台2%,10台3%)(4K季級不季獎) | R93: 75NANO95WNA.ATT | T93: 0
A94: DCS_TT | B94: DCS_TT | C94: TT-NTSI-20211213-0016 | D94: HETV20211208-TV-Dealer-Qty SIA SpecificModel-202203 | E94: 2022-03-01 | F94: 2022-03-31 | G94: NTSI | H94: 2022-03-01 | I94: 2022-03-31 | J94: 公司-電視-進獎台折(3台1%,7台2%,10台3%)(4K季級不季獎)-03~03 | K94: DCS_TT | L94: DCS_TT | M94: TW | N94: DCS_TT | O94: % | P94: 進獎台折(3台1%,7台2%,10台3%)(4K季級不季獎) | R94: 75UN8100PWB.ATT | T94: 0
A95: DCS_TT | B95: DCS_TT | C95: TT-NTSI-20211213-0016 | D95: HETV20211208-TV-Dealer-Qty SIA SpecificModel-202203 | E95: 2022-03-01 | F95: 2022-03-31 | G95: NTSI | H95: 2022-03-01 | I95: 2022-03-31 | J95: 公司-電視-進獎台折(3台1%,7台2%,10台3%)(4K季級不季獎)-03~03 | K95: DCS_TT | L95: DCS_TT | M95: TW | N95: DCS_TT | O95: % | P95: 進獎台折(3台1%,7台2%,10台3%)(4K季級不季獎) | R95: 86NANO91WNA.ATT | T95: 0
A96: DCS_TT | B96: DCS_TT | C96: TT-NTSI-20211213-0016 | D96: HETV20211208-TV-Dealer-Qty SIA SpecificModel-202203 | E96: 2022-03-01 | F96: 2022-03-31 | G96: NTSI | H96: 2022-03-01 | I96: 2022-03-31 | J96: 公司-電視-進獎台折(3台1%,7台2%,10台3%)(4K季級不季獎)-03~03 | K96: DCS_TT | L96: DCS_TT | M96: TW | N96: DCS_TT | O96: % | P96: 進獎台折(3台1%,7台2%,10台3%)(4K季級不季獎) | R96: OLED55CXPWA.ATT | T96: 0
A97: DCS_TT | B97: DCS_TT | C97: TT-NTSI-20211213-0016 | D97: HETV20211208-TV-Dealer-Qty SIA SpecificModel-202203 | E97: 2022-03-01 | F97: 2022-03-31 | G97: NTSI | H97: 2022-03-01 | I97: 2022-03-31 | J97: 公司-電視-進獎台折(3台1%,7台2%,10台3%)(4K季級不季獎)-03~03 | K97: DCS_TT | L97: DCS_TT | M97: TW | N97: DCS_TT | O97: % | P97: 進獎台折(3台1%,7台2%,10台3%)(4K季級不季獎) | R97: OLED65CXPWA.ATT | T97: 0
A98: DCS_TT | B98: DCS_TT | C98: TT-NTSI-20211213-0016 | D98: HETV20211208-TV-Dealer-Qty SIA SpecificModel-202203 | E98: 2022-03-01 | F98: 2022-03-31 | G98: NTSI | H98: 2022-03-01 | I98: 2022-03-31 | J98: 公司-電視-進獎台折(3台1%,7台2%,10台3%)(4K季級不季獎)-03~03 | K98: DCS_TT | L98: DCS_TT | M98: TW | N98: DCS_TT | O98: % | P98: 進獎台折(3台1%,7台2%,10台3%)(4K季級不季獎) | R98: OLED65GXPWA.ATT | T98: 0
A99: DCS_TT | B99: DCS_TT | C99: TT-NTSI-20211213-0016 | D99: HETV20211208-TV-Dealer-Qty SIA SpecificModel-202203 | E99: 2022-03-01 | F99: 2022-03-31 | G99: NTSI | H99: 2022-03-01 | I99: 2022-03-31 | J99: 公司-電視-進獎台折(3台1%,7台2%,10台3%)(4K季級不季獎)-03~03 | K99: DCS_TT | L99: DCS_TT | M99: TW | N99: DCS_TT | O99: % | P99: 進獎台折(3台1%,7台2%,10台3%)(4K季級不季獎) | R99: OLED65WXPWA.ATT | T99: 0
A100: DCS_TT | B100: DCS_TT | C100: TT-NTSI-20211213-0016 | D100: HETV20211208-TV-Dealer-Qty SIA SpecificModel-202203 | E100: 2022-03-01 | F100: 2022-03-31 | G100: NTSI | H100: 2022-03-01 | I100: 2022-03-31 | J100: 公司-電視-進獎台折(3台1%,7台2%,10台3%)(4K季級不季獎)-03~03 | K100: DCS_TT | L100: DCS_TT | M100: TW | N100: DCS_TT | O100: % | P100: 進獎台折(3台1%,7台2%,10台3%)(4K季級不季獎) | R100: OLED77CXPWA.ATT | T100: 0
A101: DCS_TT | B101: DCS_TT | C101: TT-NTSI-20211213-0016 | D101: HETV20211208-TV-Dealer-Qty SIA SpecificModel-202203 | E101: 2022-03-01 | F101: 2022-03-31 | G101: NTSI | H101: 2022-03-01 | I101: 2022-03-31 | J101: 公司-電視-進獎台折(3台1%,7台2%,10台3%)(4K季級不季獎)-03~03 | K101: DCS_TT | L101: DCS_TT | M101: TW | N101: DCS_TT | O101: % | P101: 進獎台折(3台1%,7台2%,10台3%)(4K季級不季獎) | R101: OLED88ZXPWA.ATT | T101: 0
A102: DCS_TT | B102: DCS_TT | C102: TT-NTSI-20211213-0016 | D102: HETV20211208-TV-Dealer-Qty SIA SpecificModel-202203 | E102: 2022-03-01 | F102: 2022-03-31 | G102: NTSI | H102: 2022-03-01 | I102: 2022-03-31 | J102: 公司-電視-進獎台折(3台1%,7台2%,10台3%)(4K季級不季獎)-03~03 | K102: DCS_TT | L102: DCS_TT | M102: TW | N102: DCS_TT | O102: % | P102: 進獎台折(3台1%,7台2%,10台3%)(4K季級不季獎) | R102: OLED48C1PSB.ATT | T102: 0
A103: DCS_TT | B103: DCS_TT | C103: TT-NTSI-20211213-0016 | D103: HETV20211208-TV-Dealer-Qty SIA SpecificModel-202203 | E103: 2022-03-01 | F103: 2022-03-31 | G103: NTSI | H103: 2022-03-01 | I103: 2022-03-31 | J103: 公司-電視-進獎台折(3台1%,7台2%,10台3%)(4K季級不季獎)-03~03 | K103: DCS_TT | L103: DCS_TT | M103: TW | N103: DCS_TT | O103: % | P103: 進獎台折(3台1%,7台2%,10台3%)(4K季級不季獎) | R103: 65NANO91SPA.ATT | T103: 0
A104: DCS_TT | B104: DCS_TT | C104: TT-NTSI-20211213-0016 | D104: HETV20211208-TV-Dealer-Qty SIA SpecificModel-202203 | E104: 2022-03-01 | F104: 2022-03-31 | G104: NTSI | H104: 2022-03-01 | I104: 2022-03-31 | J104: 公司-電視-進獎台折(3台1%,7台2%,10台3%)(4K季級不季獎)-03~03 | K104: DCS_TT | L104: DCS_TT | M104: TW | N104: DCS_TT | O104: % | P104: 進獎台折(3台1%,7台2%,10台3%)(4K季級不季獎) | R104: 55NANO91SPA.ATT | T104: 0
A105: DCS_TT | B105: DCS_TT | C105: TT-NTSI-20211213-0016 | D105: HETV20211208-TV-Dealer-Qty SIA SpecificModel-202203 | E105: 2022-03-01 | F105: 2022-03-31 | G105: NTSI | H105: 2022-03-01 | I105: 2022-03-31 | J105: 公司-電視-進獎台折(3台1%,7台2%,10台3%)(4K季級不季獎)-03~03 | K105: DCS_TT | L105: DCS_TT | M105: TW | N105: DCS_TT | O105: % | P105: 進獎台折(3台1%,7台2%,10台3%)(4K季級不季獎) | R105: 65NANO86SPA.ATT | T105: 0
A106: DCS_TT | B106: DCS_TT | C106: TT-NTSI-20211213-0016 | D106: HETV20211208-TV-Dealer-Qty SIA SpecificModel-202203 | E106: 2022-03-01 | F106: 2022-03-31 | G106: NTSI | H106: 2022-03-01 | I106: 2022-03-31 | J106: 公司-電視-進獎台折(3台1%,7台2%,10台3%)(4K季級不季獎)-03~03 | K106: DCS_TT | L106: DCS_TT | M106: TW | N106: DCS_TT | O106: % | P106: 進獎台折(3台1%,7台2%,10台3%)(4K季級不季獎) | R106: 55NANO86SPA.ATT | T106: 0
A107: DCS_TT | B107: DCS_TT | C107: TT-NTSI-20211213-0016 | D107: HETV20211208-TV-Dealer-Qty SIA SpecificModel-202203 | E107: 2022-03-01 | F107: 2022-03-31 | G107: NTSI | H107: 2022-03-01 | I107: 2022-03-31 | J107: 公司-電視-進獎台折(3台1%,7台2%,10台3%)(4K季級不季獎)-03~03 | K107: DCS_TT | L107: DCS_TT | M107: TW | N107: DCS_TT | O107: % | P107: 進獎台折(3台1%,7台2%,10台3%)(4K季級不季獎) | R107: 55NANO76SPA.ATT | T107: 0
A108: DCS_TT | B108: DCS_TT | C108: TT-NTSI-20211213-0016 | D108: HETV20211208-TV-Dealer-Qty SIA SpecificModel-202203 | E108: 2022-03-01 | F108: 2022-03-31 | G108: NTSI | H108: 2022-03-01 | I108: 2022-03-31 | J108: 公司-電視-進獎台折(3台1%,7台2%,10台3%)(4K季級不季獎)-03~03 | K108: DCS_TT | L108: DCS_TT | M108: TW | N108: DCS_TT | O108: % | P108: 進獎台折(3台1%,7台2%,10台3%)(4K季級不季獎) | R108: OLED65G1PSA.ATT | T108: 0
A109: DCS_TT | B109: DCS_TT | C109: TT-NTSI-20211213-0016 | D109: HETV20211208-TV-Dealer-Qty SIA SpecificModel-202203 | E109: 2022-03-01 | F109: 2022-03-31 | G109: NTSI | H109: 2022-03-01 | I109: 2022-03-31 | J109: 公司-電視-進獎台折(3台1%,7台2%,10台3%)(4K季級不季獎)-03~03 | K109: DCS_TT | L109: DCS_TT | M109: TW | N109: DCS_TT | O109: % | P109: 進獎台折(3台1%,7台2%,10台3%)(4K季級不季獎) | R109: OLED55C1PSB.ATT | T109: 0
A110: DCS_TT | B110: DCS_TT | C110: TT-NTSI-20211213-0016 | D110: HETV20211208-TV-Dealer-Qty SIA SpecificModel-202203 | E110: 2022-03-01 | F110: 2022-03-31 | G110: NTSI | H110: 2022-03-01 | I110: 2022-03-31 | J110: 公司-電視-進獎台折(3台1%,7台2%,10台3%)(4K季級不季獎)-03~03 | K110: DCS_TT | L110: DCS_TT | M110: TW | N110: DCS_TT | O110: % | P110: 進獎台折(3台1%,7台2%,10台3%)(4K季級不季獎) | R110: 75QNED96SPA.ATT | T110: 0
A111: DCS_TT | B111: DCS_TT | C111: TT-NTSI-20211213-0016 | D111: HETV20211208-TV-Dealer-Qty SIA SpecificModel-202203 | E111: 2022-03-01 | F111: 2022-03-31 | G111: NTSI | H111: 2022-03-01 | I111: 2022-03-31 | J111: 公司-電視-進獎台折(3台1%,7台2%,10台3%)(4K季級不季獎)-03~03 | K111: DCS_TT | L111: DCS_TT | M111: TW | N111: DCS_TT | O111: % | P111: 進獎台折(3台1%,7台2%,10台3%)(4K季級不季獎) | R111: 65QNED91SPA.ATT | T111: 0
A112: DCS_TT | B112: DCS_TT | C112: TT-NTSI-20211213-0016 | D112: HETV20211208-TV-Dealer-Qty SIA SpecificModel-202203 | E112: 2022-03-01 | F112: 2022-03-31 | G112: NTSI | H112: 2022-03-01 | I112: 2022-03-31 | J112: 公司-電視-進獎台折(3台1%,7台2%,10台3%)(4K季級不季獎)-03~03 | K112: DCS_TT | L112: DCS_TT | M112: TW | N112: DCS_TT | O112: % | P112: 進獎台折(3台1%,7台2%,10台3%)(4K季級不季獎) | R112: 75NANO86SPA.ATT | T112: 0
A113: DCS_TT | B113: DCS_TT | C113: TT-NTSI-20211213-0016 | D113: HETV20211208-TV-Dealer-Qty SIA SpecificModel-202203 | E113: 2022-03-01 | F113: 2022-03-31 | G113: NTSI | H113: 2022-03-01 | I113: 2022-03-31 | J113: 公司-電視-進獎台折(3台1%,7台2%,10台3%)(4K季級不季獎)-03~03 | K113: DCS_TT | L113: DCS_TT | M113: TW | N113: DCS_TT | O113: % | P113: 進獎台折(3台1%,7台2%,10台3%)(4K季級不季獎) | R113: 65NANO76SPA.ATT | T113: 0
A114: DCS_TT | B114: DCS_TT | C114: TT-NTSI-20211213-0016 | D114: HETV20211208-TV-Dealer-Qty SIA SpecificModel-202203 | E114: 2022-03-01 | F114: 2022-03-31 | G114: NTSI | H114: 2022-03-01 | I114: 2022-03-31 | J114: 公司-電視-進獎台折(3台1%,7台2%,10台3%)(4K季級不季獎)-03~03 | K114: DCS_TT | L114: DCS_TT | M114: TW | N114: DCS_TT | O114: % | P114: 進獎台折(3台1%,7台2%,10台3%)(4K季級不季獎) | R114: OLED88Z1PSA.ATT | T114: 0
A115: DCS_TT | B115: DCS_TT | C115: TT-NTSI-20211213-0016 | D115: HETV20211208-TV-Dealer-Qty SIA SpecificModel-202203 | E115: 2022-03-01 | F115: 2022-03-31 | G115: NTSI | H115: 2022-03-01 | I115: 2022-03-31 | J115: 公司-電視-進獎台折(3台1%,7台2%,10台3%)(4K季級不季獎)-03~03 | K115: DCS_TT | L115: DCS_TT | M115: TW | N115: DCS_TT | O115: % | P115: 進獎台折(3台1%,7台2%,10台3%)(4K季級不季獎) | R115: OLED77C1PSB.ATT | T115: 0
A116: DCS_TT | B116: DCS_TT | C116: TT-NTSI-20211213-0016 | D116: HETV20211208-TV-Dealer-Qty SIA SpecificModel-202203 | E116: 2022-03-01 | F116: 2022-03-31 | G116: NTSI | H116: 2022-03-01 | I116: 2022-03-31 | J116: 公司-電視-進獎台折(3台1%,7台2%,10台3%)(4K季級不季獎)-03~03 | K116: DCS_TT | L116: DCS_TT | M116: TW | N116: DCS_TT | O116: % | P116: 進獎台折(3台1%,7台2%,10台3%)(4K季級不季獎) | R116: 86QNED99SPB.ATT | T116: 0
A117: DCS_TT | B117: DCS_TT | C117: TT-NTSI-20211213-0016 | D117: HETV20211208-TV-Dealer-Qty SIA SpecificModel-202203 | E117: 2022-03-01 | F117: 2022-03-31 | G117: NTSI | H117: 2022-03-01 | I117: 2022-03-31 | J117: 公司-電視-進獎台折(3台1%,7台2%,10台3%)(4K季級不季獎)-03~03 | K117: DCS_TT | L117: DCS_TT | M117: TW | N117: DCS_TT | O117: % | P117: 進獎台折(3台1%,7台2%,10台3%)(4K季級不季獎) | R117: 86NANO91SPA.ATT | T117: 0
A118: DCS_TT | B118: DCS_TT | C118: TT-NTSI-20211213-0016 | D118: HETV20211208-TV-Dealer-Qty SIA SpecificModel-202203 | E118: 2022-03-01 | F118: 2022-03-31 | G118: NTSI | H118: 2022-03-01 | I118: 2022-03-31 | J118: 公司-電視-進獎台折(3台1%,7台2%,10台3%)(4K季級不季獎)-03~03 | K118: DCS_TT | L118: DCS_TT | M118: TW | N118: DCS_TT | O118: % | P118: 進獎台折(3台1%,7台2%,10台3%)(4K季級不季獎) | R118: 55UP7750PSB.ATT | T118: 0
A119: DCS_TT | B119: DCS_TT | C119: TT-NTSI-20211213-0016 | D119: HETV20211208-TV-Dealer-Qty SIA SpecificModel-202203 | E119: 2022-03-01 | F119: 2022-03-31 | G119: NTSI | H119: 2022-03-01 | I119: 2022-03-31 | J119: 公司-電視-進獎台折(3台1%,7台2%,10台3%)(4K季級不季獎)-03~03 | K119: DCS_TT | L119: DCS_TT | M119: TW | N119: DCS_TT | O119: % | P119: 進獎台折(3台1%,7台2%,10台3%)(4K季級不季獎) | R119: OLED83C1PSA.ATT | T119: 0
A120: DCS_TT | B120: DCS_TT | C120: TT-NTSI-20211213-0016 | D120: HETV20211208-TV-Dealer-Qty SIA SpecificModel-202203 | E120: 2022-03-01 | F120: 2022-03-31 | G120: NTSI | H120: 2022-03-01 | I120: 2022-03-31 | J120: 公司-電視-進獎台折(3台1%,7台2%,10台3%)(4K季級不季獎)-03~03 | K120: DCS_TT | L120: DCS_TT | M120: TW | N120: DCS_TT | O120: % | P120: 進獎台折(3台1%,7台2%,10台3%)(4K季級不季獎) | R120: 65UP8050PSB.ATT | T120: 0
A121: DCS_TT | B121: DCS_TT | C121: TT-NTSI-20211213-0016 | D121: HETV20211208-TV-Dealer-Qty SIA SpecificModel-202203 | E121: 2022-03-01 | F121: 2022-03-31 | G121: NTSI | H121: 2022-03-01 | I121: 2022-03-31 | J121: 公司-電視-進獎台折(3台1%,7台2%,10台3%)(4K季級不季獎)-03~03 | K121: DCS_TT | L121: DCS_TT | M121: TW | N121: DCS_TT | O121: % | P121: 進獎台折(3台1%,7台2%,10台3%)(4K季級不季獎) | R121: OLED77G1PSA.ATT | T121: 0
A122: DCS_TT | B122: DCS_TT | C122: TT-NTSI-20211213-0016 | D122: HETV20211208-TV-Dealer-Qty SIA SpecificModel-202203 | E122: 2022-03-01 | F122: 2022-03-31 | G122: NTSI | H122: 2022-03-01 | I122: 2022-03-31 | J122: 公司-電視-進獎台折(3台1%,7台2%,10台3%)(4K季級不季獎)-03~03 | K122: DCS_TT | L122: DCS_TT | M122: TW | N122: DCS_TT | O122: % | P122: 進獎台折(3台1%,7台2%,10台3%)(4K季級不季獎) | R122: OLED55G1PSA.ATT | T122: 0
A123: DCS_TT | B123: DCS_TT | C123: TT-NTSI-20211213-0016 | D123: HETV20211208-TV-Dealer-Qty SIA SpecificModel-202203 | E123: 2022-03-01 | F123: 2022-03-31 | G123: NTSI | H123: 2022-03-01 | I123: 2022-03-31 | J123: 公司-電視-進獎台折(3台1%,7台2%,10台3%)(4K季級不季獎)-03~03 | K123: DCS_TT | L123: DCS_TT | M123: TW | N123: DCS_TT | O123: % | P123: 進獎台折(3台1%,7台2%,10台3%)(4K季級不季獎) | R123: OLED65C1PSB.ATT | T123: 0
A124: DCS_TT | B124: DCS_TT | C124: TT-NTSI-20211213-0016 | D124: HETV20211208-TV-Dealer-Qty SIA SpecificModel-202203 | E124: 2022-03-01 | F124: 2022-03-31 | G124: NTSI | H124: 2022-03-01 | I124: 2022-03-31 | J124: 公司-電視-進獎台折(3台1%,7台2%,10台3%)(4K季級不季獎)-03~03 | K124: DCS_TT | L124: DCS_TT | M124: TW | N124: DCS_TT | O124: % | P124: 進獎台折(3台1%,7台2%,10台3%)(4K季級不季獎) | R124: 75NANO91SPA.ATT | T124: 0
A125: DCS_TT | B125: DCS_TT | C125: TT-NTSI-20211213-0016 | D125: HETV20211208-TV-Dealer-Qty SIA SpecificModel-202203 | E125: 2022-03-01 | F125: 2022-03-31 | G125: NTSI | H125: 2022-03-01 | I125: 2022-03-31 | J125: 公司-電視-進獎台折(3台1%,7台2%,10台3%)(4K季級不季獎)-03~03 | K125: DCS_TT | L125: DCS_TT | M125: TW | N125: DCS_TT | O125: % | P125: 進獎台折(3台1%,7台2%,10台3%)(4K季級不季獎) | R125: 86UP8050PSB.ATT | T125: 0
A126: DCS_TT | B126: DCS_TT | C126: TT-NTSI-20211213-0016 | D126: HETV20211208-TV-Dealer-Qty SIA SpecificModel-202203 | E126: 2022-03-01 | F126: 2022-03-31 | G126: NTSI | H126: 2022-03-01 | I126: 2022-03-31 | J126: 公司-電視-進獎台折(3台1%,7台2%,10台3%)(4K季級不季獎)-03~03 | K126: DCS_TT | L126: DCS_TT | M126: TW | N126: DCS_TT | O126: % | P126: 進獎台折(3台1%,7台2%,10台3%)(4K季級不季獎) | R126: 65UP7750PSB.ATT | T126: 0
A127: DCS_TT | B127: DCS_TT | C127: TT-NTSI-20211213-0016 | D127: HETV20211208-TV-Dealer-Qty SIA SpecificModel-202203 | E127: 2022-03-01 | F127: 2022-03-31 | G127: NTSI | H127: 2022-03-01 | I127: 2022-03-31 | J127: 公司-電視-進獎台折(3台1%,7台2%,10台3%)(4K季級不季獎)-03~03 | K127: DCS_TT | L127: DCS_TT | M127: TW | N127: DCS_TT | O127: % | P127: 進獎台折(3台1%,7台2%,10台3%)(4K季級不季獎) | R127: 55UP8050PSB.ATT | T127: 0
A128: DLC_TT | B128: DLC_TT | C128: TT-NTSI-20211213-0016 | D128: HETV20211208-TV-Dealer-Qty SIA SpecificModel-202203 | E128: 2022-03-01 | F128: 2022-03-31 | G128: NTSI | H128: 2022-03-01 | I128: 2022-03-31 | J128: 公司-電視-進獎台折(3台1%,7台2%,10台3%)(4K季級不季獎)-03~03 | K128: DLC_TT | L128: DLC_TT | M128: TW | N128: DLC_TT | O128: % | P128: 進獎台折(3台1%,7台2%,10台3%)(4K季級不季獎) | R128: 49NANO81WNA.ATT | T128: 0
A129: DLC_TT | B129: DLC_TT | C129: TT-NTSI-20211213-0016 | D129: HETV20211208-TV-Dealer-Qty SIA SpecificModel-202203 | E129: 2022-03-01 | F129: 2022-03-31 | G129: NTSI | H129: 2022-03-01 | I129: 2022-03-31 | J129: 公司-電視-進獎台折(3台1%,7台2%,10台3%)(4K季級不季獎)-03~03 | K129: DLC_TT | L129: DLC_TT | M129: TW | N129: DLC_TT | O129: % | P129: 進獎台折(3台1%,7台2%,10台3%)(4K季級不季獎) | R129: 55NANO81WNA.ATT | T129: 0
A130: =IFERROR(VLOOKUP(N130,多CODE,2,0),IF(RIGHT($B130,1)="H",LEFT($B130,11)&"B",IFERROR(VLOOKUP($B130,SHIP,3,0),$B130))) -> DLC_TT | B130: DLC_TT | C130: TT-NTSI-20211213-0016 | D130: HETV20211208-TV-Dealer-Qty SIA SpecificModel-202203 | E130: 2022-03-01 | F130: 2022-03-31 | G130: =MID(C130,4,4) -> NTSI | H130: =IF(OR($G130="NTSI",$G130="TTSI"),$E130,LEFT($E130,4)&"/"&MID($E130,5,2)&"/"&RIGHT($E130,2)) -> 2022-03-01 | I130: =IF(OR($G130="NTSI",$G130="TTSI"),$F130,LEFT($F130,4)&"/"&MID($F130,5,2)&"/"&RIGHT($F130,2)) -> 2022-03-31 | J130: 公司-電視-進獎台折(3台1%,7台2%,10台3%)(4K季級不季獎)-03~03 | K130: DLC_TT | L130: DLC_TT | M130: TW | N130: DLC_TT | O130: % | P130: 進獎台折(3台1%,7台2%,10台3%)(4K季級不季獎) | R130: 55UN8000PWA.ATT | T130: 0
A131: DLC_TT | B131: DLC_TT | C131: TT-NTSI-20211213-0016 | D131: HETV20211208-TV-Dealer-Qty SIA SpecificModel-202203 | E131: 2022-03-01 | F131: 2022-03-31 | G131: NTSI | H131: 2022-03-01 | I131: 2022-03-31 | J131: 公司-電視-進獎台折(3台1%,7台2%,10台3%)(4K季級不季獎)-03~03 | K131: DLC_TT | L131: DLC_TT | M131: TW | N131: DLC_TT | O131: % | P131: 進獎台折(3台1%,7台2%,10台3%)(4K季級不季獎) | R131: 55UN8100PWA.ATT | T131: 0
A132: DLC_TT | B132: DLC_TT | C132: TT-NTSI-20211213-0016 | D132: HETV20211208-TV-Dealer-Qty SIA SpecificModel-202203 | E132: 2022-03-01 | F132: 2022-03-31 | G132: NTSI | H132: 2022-03-01 | I132: 2022-03-31 | J132: 公司-電視-進獎台折(3台1%,7台2%,10台3%)(4K季級不季獎)-03~03 | K132: DLC_TT | L132: DLC_TT | M132: TW | N132: DLC_TT | O132: % | P132: 進獎台折(3台1%,7台2%,10台3%)(4K季級不季獎) | R132: 65NANO81WNA.ATT | T132: 0
A133: DLC_TT | B133: DLC_TT | C133: TT-NTSI-20211213-0016 | D133: HETV20211208-TV-Dealer-Qty SIA SpecificModel-202203 | E133: 2022-03-01 | F133: 2022-03-31 | G133: NTSI | H133: 2022-03-01 | I133: 2022-03-31 | J133: 公司-電視-進獎台折(3台1%,7台2%,10台3%)(4K季級不季獎)-03~03 | K133: DLC_TT | L133: DLC_TT | M133: TW | N133: DLC_TT | O133: % | P133: 進獎台折(3台1%,7台2%,10台3%)(4K季級不季獎) | R133: 65NANO91WNA.ATT | T133: 0
A134: DLC_TT | B134: DLC_TT | C134: TT-NTSI-20211213-0016 | D134: HETV20211208-TV-Dealer-Qty SIA SpecificModel-202203 | E134: 2022-03-01 | F134: 2022-03-31 | G134: NTSI | H134: 2022-03-01 | I134: 2022-03-31 | J134: 公司-電視-進獎台折(3台1%,7台2%,10台3%)(4K季級不季獎)-03~03 | K134: DLC_TT | L134: DLC_TT | M134: TW | N134: DLC_TT | O134: % | P134: 進獎台折(3台1%,7台2%,10台3%)(4K季級不季獎) | R134: 65NANO95WNA.ATT | T134: 0
A135: DLC_TT | B135: DLC_TT | C135: TT-NTSI-20211213-0016 | D135: HETV20211208-TV-Dealer-Qty SIA SpecificModel-202203 | E135: 2022-03-01 | F135: 2022-03-31 | G135: NTSI | H135: 2022-03-01 | I135: 2022-03-31 | J135: 公司-電視-進獎台折(3台1%,7台2%,10台3%)(4K季級不季獎)-03~03 | K135: DLC_TT | L135: DLC_TT | M135: TW | N135: DLC_TT | O135: % | P135: 進獎台折(3台1%,7台2%,10台3%)(4K季級不季獎) | R135: 65UN8000PWA.ATT | T135: 0
A136: DLC_TT | B136: DLC_TT | C136: TT-NTSI-20211213-0016 | D136: HETV20211208-TV-Dealer-Qty SIA SpecificModel-202203 | E136: 2022-03-01 | F136: 2022-03-31 | G136: NTSI | H136: 2022-03-01 | I136: 2022-03-31 | J136: 公司-電視-進獎台折(3台1%,7台2%,10台3%)(4K季級不季獎)-03~03 | K136: DLC_TT | L136: DLC_TT | M136: TW | N136: DLC_TT | O136: % | P136: 進獎台折(3台1%,7台2%,10台3%)(4K季級不季獎) | R136: 65UN8100PWA.ATT | T136: 0
A137: DLC_TT | B137: DLC_TT | C137: TT-NTSI-20211213-0016 | D137: HETV20211208-TV-Dealer-Qty SIA SpecificModel-202203 | E137: 2022-03-01 | F137: 2022-03-31 | G137: NTSI | H137: 2022-03-01 | I137: 2022-03-31 | J137: 公司-電視-進獎台折(3台1%,7台2%,10台3%)(4K季級不季獎)-03~03 | K137: DLC_TT | L137: DLC_TT | M137: TW | N137: DLC_TT | O137: % | P137: 進獎台折(3台1%,7台2%,10台3%)(4K季級不季獎) | R137: 75NANO91WNA.ATT | T137: 0
A138: DLC_TT | B138: DLC_TT | C138: TT-NTSI-20211213-0016 | D138: HETV20211208-TV-Dealer-Qty SIA SpecificModel-202203 | E138: 2022-03-01 | F138: 2022-03-31 | G138: NTSI | H138: 2022-03-01 | I138: 2022-03-31 | J138: 公司-電視-進獎台折(3台1%,7台2%,10台3%)(4K季級不季獎)-03~03 | K138: DLC_TT | L138: DLC_TT | M138: TW | N138: DLC_TT | O138: % | P138: 進獎台折(3台1%,7台2%,10台3%)(4K季級不季獎) | R138: 75NANO95WNA.ATT | T138: 0
A139: DLC_TT | B139: DLC_TT | C139: TT-NTSI-20211213-0016 | D139: HETV20211208-TV-Dealer-Qty SIA SpecificModel-202203 | E139: 2022-03-01 | F139: 2022-03-31 | G139: NTSI | H139: 2022-03-01 | I139: 2022-03-31 | J139: 公司-電視-進獎台折(3台1%,7台2%,10台3%)(4K季級不季獎)-03~03 | K139: DLC_TT | L139: DLC_TT | M139: TW | N139: DLC_TT | O139: % | P139: 進獎台折(3台1%,7台2%,10台3%)(4K季級不季獎) | R139: 75UN8100PWB.ATT | T139: 0
A140: DLC_TT | B140: DLC_TT | C140: TT-NTSI-20211213-0016 | D140: HETV20211208-TV-Dealer-Qty SIA SpecificModel-202203 | E140: 2022-03-01 | F140: 2022-03-31 | G140: NTSI | H140: 2022-03-01 | I140: 2022-03-31 | J140: 公司-電視-進獎台折(3台1%,7台2%,10台3%)(4K季級不季獎)-03~03 | K140: DLC_TT | L140: DLC_TT | M140: TW | N140: DLC_TT | O140: % | P140: 進獎台折(3台1%,7台2%,10台3%)(4K季級不季獎) | R140: 86NANO91WNA.ATT | T140: 0
A141: DLC_TT | B141: DLC_TT | C141: TT-NTSI-20211213-0016 | D141: HETV20211208-TV-Dealer-Qty SIA SpecificModel-202203 | E141: 2022-03-01 | F141: 2022-03-31 | G141: NTSI | H141: 2022-03-01 | I141: 2022-03-31 | J141: 公司-電視-進獎台折(3台1%,7台2%,10台3%)(4K季級不季獎)-03~03 | K141: DLC_TT | L141: DLC_TT | M141: TW | N141: DLC_TT | O141: % | P141: 進獎台折(3台1%,7台2%,10台3%)(4K季級不季獎) | R141: OLED55CXPWA.ATT | T141: 0
A142: DLC_TT | B142: DLC_TT | C142: TT-NTSI-20211213-0016 | D142: HETV20211208-TV-Dealer-Qty SIA SpecificModel-202203 | E142: 2022-03-01 | F142: 2022-03-31 | G142: NTSI | H142: 2022-03-01 | I142: 2022-03-31 | J142: 公司-電視-進獎台折(3台1%,7台2%,10台3%)(4K季級不季獎)-03~03 | K142: DLC_TT | L142: DLC_TT | M142: TW | N142: DLC_TT | O142: % | P142: 進獎台折(3台1%,7台2%,10台3%)(4K季級不季獎) | R142: OLED65CXPWA.ATT | T142: 0
A143: DLC_TT | B143: DLC_TT | C143: TT-NTSI-20211213-0016 | D143: HETV20211208-TV-Dealer-Qty SIA SpecificModel-202203 | E143: 2022-03-01 | F143: 2022-03-31 | G143: NTSI | H143: 2022-03-01 | I143: 2022-03-31 | J143: 公司-電視-進獎台折(3台1%,7台2%,10台3%)(4K季級不季獎)-03~03 | K143: DLC_TT | L143: DLC_TT | M143: TW | N143: DLC_TT | O143: % | P143: 進獎台折(3台1%,7台2%,10台3%)(4K季級不季獎) | R143: OLED65GXPWA.ATT | T143: 0
A144: DLC_TT | B144: DLC_TT | C144: TT-NTSI-20211213-0016 | D144: HETV20211208-TV-Dealer-Qty SIA SpecificModel-202203 | E144: 2022-03-01 | F144: 2022-03-31 | G144: NTSI | H144: 2022-03-01 | I144: 2022-03-31 | J144: 公司-電視-進獎台折(3台1%,7台2%,10台3%)(4K季級不季獎)-03~03 | K144: DLC_TT | L144: DLC_TT | M144: TW | N144: DLC_TT | O144: % | P144: 進獎台折(3台1%,7台2%,10台3%)(4K季級不季獎) | R144: OLED65WXPWA.ATT | T144: 0
A145: DLC_TT | B145: DLC_TT | C145: TT-NTSI-20211213-0016 | D145: HETV20211208-TV-Dealer-Qty SIA SpecificModel-202203 | E145: 2022-03-01 | F145: 2022-03-31 | G145: NTSI | H145: 2022-03-01 | I145: 2022-03-31 | J145: 公司-電視-進獎台折(3台1%,7台2%,10台3%)(4K季級不季獎)-03~03 | K145: DLC_TT | L145: DLC_TT | M145: TW | N145: DLC_TT | O145: % | P145: 進獎台折(3台1%,7台2%,10台3%)(4K季級不季獎) | R145: OLED77CXPWA.ATT | T145: 0
A146: DLC_TT | B146: DLC_TT | C146: TT-NTSI-20211213-0016 | D146: HETV20211208-TV-Dealer-Qty SIA SpecificModel-202203 | E146: 2022-03-01 | F146: 2022-03-31 | G146: NTSI | H146: 2022-03-01 | I146: 2022-03-31 | J146: 公司-電視-進獎台折(3台1%,7台2%,10台3%)(4K季級不季獎)-03~03 | K146: DLC_TT | L146: DLC_TT | M146: TW | N146: DLC_TT | O146: % | P146: 進獎台折(3台1%,7台2%,10台3%)(4K季級不季獎) | R146: OLED88ZXPWA.ATT | T146: 0
A147: DLC_TT | B147: DLC_TT | C147: TT-NTSI-20211213-0016 | D147: HETV20211208-TV-Dealer-Qty SIA SpecificModel-202203 | E147: 2022-03-01 | F147: 2022-03-31 | G147: NTSI | H147: 2022-03-01 | I147: 2022-03-31 | J147: 公司-電視-進獎台折(3台1%,7台2%,10台3%)(4K季級不季獎)-03~03 | K147: DLC_TT | L147: DLC_TT | M147: TW | N147: DLC_TT | O147: % | P147: 進獎台折(3台1%,7台2%,10台3%)(4K季級不季獎) | R147: OLED48C1PSB.ATT | T147: 0
A148: DLC_TT | B148: DLC_TT | C148: TT-NTSI-20211213-0016 | D148: HETV20211208-TV-Dealer-Qty SIA SpecificModel-202203 | E148: 2022-03-01 | F148: 2022-03-31 | G148: NTSI | H148: 2022-03-01 | I148: 2022-03-31 | J148: 公司-電視-進獎台折(3台1%,7台2%,10台3%)(4K季級不季獎)-03~03 | K148: DLC_TT | L148: DLC_TT | M148: TW | N148: DLC_TT | O148: % | P148: 進獎台折(3台1%,7台2%,10台3%)(4K季級不季獎) | R148: 65NANO91SPA.ATT | T148: 0
A149: DLC_TT | B149: DLC_TT | C149: TT-NTSI-20211213-0016 | D149: HETV20211208-TV-Dealer-Qty SIA SpecificModel-202203 | E149: 2022-03-01 | F149: 2022-03-31 | G149: NTSI | H149: 2022-03-01 | I149: 2022-03-31 | J149: 公司-電視-進獎台折(3台1%,7台2%,10台3%)(4K季級不季獎)-03~03 | K149: DLC_TT | L149: DLC_TT | M149: TW | N149: DLC_TT | O149: % | P149: 進獎台折(3台1%,7台2%,10台3%)(4K季級不季獎) | R149: 55NANO91SPA.ATT | T149: 0
A150: DLC_TT | B150: DLC_TT | C150: TT-NTSI-20211213-0016 | D150: HETV20211208-TV-Dealer-Qty SIA SpecificModel-202203 | E150: 2022-03-01 | F150: 2022-03-31 | G150: NTSI | H150: 2022-03-01 | I150: 2022-03-31 | J150: 公司-電視-進獎台折(3台1%,7台2%,10台3%)(4K季級不季獎)-03~03 | K150: DLC_TT | L150: DLC_TT | M150: TW | N150: DLC_TT | O150: % | P150: 進獎台折(3台1%,7台2%,10台3%)(4K季級不季獎) | R150: 65NANO86SPA.ATT | T150: 0
A151: DLC_TT | B151: DLC_TT | C151: TT-NTSI-20211213-0016 | D151: HETV20211208-TV-Dealer-Qty SIA SpecificModel-202203 | E151: 2022-03-01 | F151: 2022-03-31 | G151: NTSI | H151: 2022-03-01 | I151: 2022-03-31 | J151: 公司-電視-進獎台折(3台1%,7台2%,10台3%)(4K季級不季獎)-03~03 | K151: DLC_TT | L151: DLC_TT | M151: TW | N151: DLC_TT | O151: % | P151: 進獎台折(3台1%,7台2%,10台3%)(4K季級不季獎) | R151: 55NANO86SPA.ATT | T151: 0
A152: DLC_TT | B152: DLC_TT | C152: TT-NTSI-20211213-0016 | D152: HETV20211208-TV-Dealer-Qty SIA SpecificModel-202203 | E152: 2022-03-01 | F152: 2022-03-31 | G152: NTSI | H152: 2022-03-01 | I152: 2022-03-31 | J152: 公司-電視-進獎台折(3台1%,7台2%,10台3%)(4K季級不季獎)-03~03 | K152: DLC_TT | L152: DLC_TT | M152: TW | N152: DLC_TT | O152: % | P152: 進獎台折(3台1%,7台2%,10台3%)(4K季級不季獎) | R152: 55NANO76SPA.ATT | T152: 0
A153: DLC_TT | B153: DLC_TT | C153: TT-NTSI-20211213-0016 | D153: HETV20211208-TV-Dealer-Qty SIA SpecificModel-202203 | E153: 2022-03-01 | F153: 2022-03-31 | G153: NTSI | H153: 2022-03-01 | I153: 2022-03-31 | J153: 公司-電視-進獎台折(3台1%,7台2%,10台3%)(4K季級不季獎)-03~03 | K153: DLC_TT | L153: DLC_TT | M153: TW | N153: DLC_TT | O153: % | P153: 進獎台折(3台1%,7台2%,10台3%)(4K季級不季獎) | R153: OLED65G1PSA.ATT | T153: 0
A154: DLC_TT | B154: DLC_TT | C154: TT-NTSI-20211213-0016 | D154: HETV20211208-TV-Dealer-Qty SIA SpecificModel-202203 | E154: 2022-03-01 | F154: 2022-03-31 | G154: NTSI | H154: 2022-03-01 | I154: 2022-03-31 | J154: 公司-電視-進獎台折(3台1%,7台2%,10台3%)(4K季級不季獎)-03~03 | K154: DLC_TT | L154: DLC_TT | M154: TW | N154: DLC_TT | O154: % | P154: 進獎台折(3台1%,7台2%,10台3%)(4K季級不季獎) | R154: OLED55C1PSB.ATT | T154: 0
A155: DLC_TT | B155: DLC_TT | C155: TT-NTSI-20211213-0016 | D155: HETV20211208-TV-Dealer-Qty SIA SpecificModel-202203 | E155: 2022-03-01 | F155: 2022-03-31 | G155: NTSI | H155: 2022-03-01 | I155: 2022-03-31 | J155: 公司-電視-進獎台折(3台1%,7台2%,10台3%)(4K季級不季獎)-03~03 | K155: DLC_TT | L155: DLC_TT | M155: TW | N155: DLC_TT | O155: % | P155: 進獎台折(3台1%,7台2%,10台3%)(4K季級不季獎) | R155: 75QNED96SPA.ATT | T155: 0
A156: DLC_TT | B156: DLC_TT | C156: TT-NTSI-20211213-0016 | D156: HETV20211208-TV-Dealer-Qty SIA SpecificModel-202203 | E156: 2022-03-01 | F156: 2022-03-31 | G156: NTSI | H156: 2022-03-01 | I156: 2022-03-31 | J156: 公司-電視-進獎台折(3台1%,7台2%,10台3%)(4K季級不季獎)-03~03 | K156: DLC_TT | L156: DLC_TT | M156: TW | N156: DLC_TT | O156: % | P156: 進獎台折(3台1%,7台2%,10台3%)(4K季級不季獎) | R156: 65QNED91SPA.ATT | T156: 0
A157: DLC_TT | B157: DLC_TT | C157: TT-NTSI-20211213-0016 | D157: HETV20211208-TV-Dealer-Qty SIA SpecificModel-202203 | E157: 2022-03-01 | F157: 2022-03-31 | G157: NTSI | H157: 2022-03-01 | I157: 2022-03-31 | J157: 公司-電視-進獎台折(3台1%,7台2%,10台3%)(4K季級不季獎)-03~03 | K157: DLC_TT | L157: DLC_TT | M157: TW | N157: DLC_TT | O157: % | P157: 進獎台折(3台1%,7台2%,10台3%)(4K季級不季獎) | R157: 75NANO86SPA.ATT | T157: 0
A158: DLC_TT | B158: DLC_TT | C158: TT-NTSI-20211213-0016 | D158: HETV20211208-TV-Dealer-Qty SIA SpecificModel-202203 | E158: 2022-03-01 | F158: 2022-03-31 | G158: NTSI | H158: 2022-03-01 | I158: 2022-03-31 | J158: 公司-電視-進獎台折(3台1%,7台2%,10台3%)(4K季級不季獎)-03~03 | K158: DLC_TT | L158: DLC_TT | M158: TW | N158: DLC_TT | O158: % | P158: 進獎台折(3台1%,7台2%,10台3%)(4K季級不季獎) | R158: 65NANO76SPA.ATT | T158: 0
A159: DLC_TT | B159: DLC_TT | C159: TT-NTSI-20211213-0016 | D159: HETV20211208-TV-Dealer-Qty SIA SpecificModel-202203 | E159: 2022-03-01 | F159: 2022-03-31 | G159: NTSI | H159: 2022-03-01 | I159: 2022-03-31 | J159: 公司-電視-進獎台折(3台1%,7台2%,10台3%)(4K季級不季獎)-03~03 | K159: DLC_TT | L159: DLC_TT | M159: TW | N159: DLC_TT | O159: % | P159: 進獎台折(3台1%,7台2%,10台3%)(4K季級不季獎) | R159: OLED88Z1PSA.ATT | T159: 0
A160: DLC_TT | B160: DLC_TT | C160: TT-NTSI-20211213-0016 | D160: HETV20211208-TV-Dealer-Qty SIA SpecificModel-202203 | E160: 2022-03-01 | F160: 2022-03-31 | G160: NTSI | H160: 2022-03-01 | I160: 2022-03-31 | J160: 公司-電視-進獎台折(3台1%,7台2%,10台3%)(4K季級不季獎)-03~03 | K160: DLC_TT | L160: DLC_TT | M160: TW | N160: DLC_TT | O160: % | P160: 進獎台折(3台1%,7台2%,10台3%)(4K季級不季獎) | R160: OLED77C1PSB.ATT | T160: 0
A161: DLC_TT | B161: DLC_TT | C161: TT-NTSI-20211213-0016 | D161: HETV20211208-TV-Dealer-Qty SIA SpecificModel-202203 | E161: 2022-03-01 | F161: 2022-03-31 | G161: NTSI | H161: 2022-03-01 | I161: 2022-03-31 | J161: 公司-電視-進獎台折(3台1%,7台2%,10台3%)(4K季級不季獎)-03~03 | K161: DLC_TT | L161: DLC_TT | M161: TW | N161: DLC_TT | O161: % | P161: 進獎台折(3台1%,7台2%,10台3%)(4K季級不季獎) | R161: 86QNED99SPB.ATT | T161: 0
A162: DLC_TT | B162: DLC_TT | C162: TT-NTSI-20211213-0016 | D162: HETV20211208-TV-Dealer-Qty SIA SpecificModel-202203 | E162: 2022-03-01 | F162: 2022-03-31 | G162: NTSI | H162: 2022-03-01 | I162: 2022-03-31 | J162: 公司-電視-進獎台折(3台1%,7台2%,10台3%)(4K季級不季獎)-03~03 | K162: DLC_TT | L162: DLC_TT | M162: TW | N162: DLC_TT | O162: % | P162: 進獎台折(3台1%,7台2%,10台3%)(4K季級不季獎) | R162: 86NANO91SPA.ATT | T162: 0
A163: DLC_TT | B163: DLC_TT | C163: TT-NTSI-20211213-0016 | D163: HETV20211208-TV-Dealer-Qty SIA SpecificModel-202203 | E163: 2022-03-01 | F163: 2022-03-31 | G163: NTSI | H163: 2022-03-01 | I163: 2022-03-31 | J163: 公司-電視-進獎台折(3台1%,7台2%,10台3%)(4K季級不季獎)-03~03 | K163: DLC_TT | L163: DLC_TT | M163: TW | N163: DLC_TT | O163: % | P163: 進獎台折(3台1%,7台2%,10台3%)(4K季級不季獎) | R163: 55UP7750PSB.ATT | T163: 0
A164: DLC_TT | B164: DLC_TT | C164: TT-NTSI-20211213-0016 | D164: HETV20211208-TV-Dealer-Qty SIA SpecificModel-202203 | E164: 2022-03-01 | F164: 2022-03-31 | G164: NTSI | H164: 2022-03-01 | I164: 2022-03-31 | J164: 公司-電視-進獎台折(3台1%,7台2%,10台3%)(4K季級不季獎)-03~03 | K164: DLC_TT | L164: DLC_TT | M164: TW | N164: DLC_TT | O164: % | P164: 進獎台折(3台1%,7台2%,10台3%)(4K季級不季獎) | R164: OLED83C1PSA.ATT | T164: 0
A165: DLC_TT | B165: DLC_TT | C165: TT-NTSI-20211213-0016 | D165: HETV20211208-TV-Dealer-Qty SIA SpecificModel-202203 | E165: 2022-03-01 | F165: 2022-03-31 | G165: NTSI | H165: 2022-03-01 | I165: 2022-03-31 | J165: 公司-電視-進獎台折(3台1%,7台2%,10台3%)(4K季級不季獎)-03~03 | K165: DLC_TT | L165: DLC_TT | M165: TW | N165: DLC_TT | O165: % | P165: 進獎台折(3台1%,7台2%,10台3%)(4K季級不季獎) | R165: 65UP8050PSB.ATT | T165: 0
A166: DLC_TT | B166: DLC_TT | C166: TT-NTSI-20211213-0016 | D166: HETV20211208-TV-Dealer-Qty SIA SpecificModel-202203 | E166: 2022-03-01 | F166: 2022-03-31 | G166: NTSI | H166: 2022-03-01 | I166: 2022-03-31 | J166: 公司-電視-進獎台折(3台1%,7台2%,10台3%)(4K季級不季獎)-03~03 | K166: DLC_TT | L166: DLC_TT | M166: TW | N166: DLC_TT | O166: % | P166: 進獎台折(3台1%,7台2%,10台3%)(4K季級不季獎) | R166: OLED77G1PSA.ATT | T166: 0
A167: DLC_TT | B167: DLC_TT | C167: TT-NTSI-20211213-0016 | D167: HETV20211208-TV-Dealer-Qty SIA SpecificModel-202203 | E167: 2022-03-01 | F167: 2022-03-31 | G167: NTSI | H167: 2022-03-01 | I167: 2022-03-31 | J167: 公司-電視-進獎台折(3台1%,7台2%,10台3%)(4K季級不季獎)-03~03 | K167: DLC_TT | L167: DLC_TT | M167: TW | N167: DLC_TT | O167: % | P167: 進獎台折(3台1%,7台2%,10台3%)(4K季級不季獎) | R167: OLED55G1PSA.ATT | T167: 0
A168: DLC_TT | B168: DLC_TT | C168: TT-NTSI-20211213-0016 | D168: HETV20211208-TV-Dealer-Qty SIA SpecificModel-202203 | E168: 2022-03-01 | F168: 2022-03-31 | G168: NTSI | H168: 2022-03-01 | I168: 2022-03-31 | J168: 公司-電視-進獎台折(3台1%,7台2%,10台3%)(4K季級不季獎)-03~03 | K168: DLC_TT | L168: DLC_TT | M168: TW | N168: DLC_TT | O168: % | P168: 進獎台折(3台1%,7台2%,10台3%)(4K季級不季獎) | R168: OLED65C1PSB.ATT | T168: 0
A169: DLC_TT | B169: DLC_TT | C169: TT-NTSI-20211213-0016 | D169: HETV20211208-TV-Dealer-Qty SIA SpecificModel-202203 | E169: 2022-03-01 | F169: 2022-03-31 | G169: NTSI | H169: 2022-03-01 | I169: 2022-03-31 | J169: 公司-電視-進獎台折(3台1%,7台2%,10台3%)(4K季級不季獎)-03~03 | K169: DLC_TT | L169: DLC_TT | M169: TW | N169: DLC_TT | O169: % | P169: 進獎台折(3台1%,7台2%,10台3%)(4K季級不季獎) | R169: 75NANO91SPA.ATT | T169: 0
A170: DLC_TT | B170: DLC_TT | C170: TT-NTSI-20211213-0016 | D170: HETV20211208-TV-Dealer-Qty SIA SpecificModel-202203 | E170: 2022-03-01 | F170: 2022-03-31 | G170: NTSI | H170: 2022-03-01 | I170: 2022-03-31 | J170: 公司-電視-進獎台折(3台1%,7台2%,10台3%)(4K季級不季獎)-03~03 | K170: DLC_TT | L170: DLC_TT | M170: TW | N170: DLC_TT | O170: % | P170: 進獎台折(3台1%,7台2%,10台3%)(4K季級不季獎) | R170: 86UP8050PSB.ATT | T170: 0
A171: DLC_TT | B171: DLC_TT | C171: TT-NTSI-20211213-0016 | D171: HETV20211208-TV-Dealer-Qty SIA SpecificModel-202203 | E171: 2022-03-01 | F171: 2022-03-31 | G171: NTSI | H171: 2022-03-01 | I171: 2022-03-31 | J171: 公司-電視-進獎台折(3台1%,7台2%,10台3%)(4K季級不季獎)-03~03 | K171: DLC_TT | L171: DLC_TT | M171: TW | N171: DLC_TT | O171: % | P171: 進獎台折(3台1%,7台2%,10台3%)(4K季級不季獎) | R171: 65UP7750PSB.ATT | T171: 0
A172: DLC_TT | B172: DLC_TT | C172: TT-NTSI-20211213-0016 | D172: HETV20211208-TV-Dealer-Qty SIA SpecificModel-202203 | E172: 2022-03-01 | F172: 2022-03-31 | G172: NTSI | H172: 2022-03-01 | I172: 2022-03-31 | J172: 公司-電視-進獎台折(3台1%,7台2%,10台3%)(4K季級不季獎)-03~03 | K172: DLC_TT | L172: DLC_TT | M172: TW | N172: DLC_TT | O172: % | P172: 進獎台折(3台1%,7台2%,10台3%)(4K季級不季獎) | R172: 55UP8050PSB.ATT | T172: 0
A173: SPD_TT | B173: SPD_TT | C173: TT-NTSI-20211213-0018 | D173: HETV20211208-TV-Dealer SPD-Qty SIA SpecificModel-202203 | E173: 2022-03-01 | F173: 2022-03-31 | G173: NTSI | H173: 2022-03-01 | I173: 2022-03-31 | J173: 公司-電視-專售店進獎台折2%(10台3%)(4K季級不季獎)-03~03 | K173: SPD_TT | L173: SPD_TT | M173: TW | N173: SPD_TT | O173: % | P173: 專售店進獎台折2%(10台3%)(4K季級不季獎) | R173: 49NANO81WNA.ATT | T173: 0
A174: SPD_TT | B174: SPD_TT | C174: TT-NTSI-20211213-0018 | D174: HETV20211208-TV-Dealer SPD-Qty SIA SpecificModel-202203 | E174: 2022-03-01 | F174: 2022-03-31 | G174: NTSI | H174: 2022-03-01 | I174: 2022-03-31 | J174: 公司-電視-專售店進獎台折2%(10台3%)(4K季級不季獎)-03~03 | K174: SPD_TT | L174: SPD_TT | M174: TW | N174: SPD_TT | O174: % | P174: 專售店進獎台折2%(10台3%)(4K季級不季獎) | R174: 55NANO81WNA.ATT | T174: 0
A175: SPD_TT | B175: SPD_TT | C175: TT-NTSI-20211213-0018 | D175: HETV20211208-TV-Dealer SPD-Qty SIA SpecificModel-202203 | E175: 2022-03-01 | F175: 2022-03-31 | G175: NTSI | H175: 2022-03-01 | I175: 2022-03-31 | J175: 公司-電視-專售店進獎台折2%(10台3%)(4K季級不季獎)-03~03 | K175: SPD_TT | L175: SPD_TT | M175: TW | N175: SPD_TT | O175: % | P175: 專售店進獎台折2%(10台3%)(4K季級不季獎) | R175: 55UN8000PWA.ATT | T175: 0
A176: SPD_TT | B176: SPD_TT | C176: TT-NTSI-20211213-0018 | D176: HETV20211208-TV-Dealer SPD-Qty SIA SpecificModel-202203 | E176: 2022-03-01 | F176: 2022-03-31 | G176: NTSI | H176: 2022-03-01 | I176: 2022-03-31 | J176: 公司-電視-專售店進獎台折2%(10台3%)(4K季級不季獎)-03~03 | K176: SPD_TT | L176: SPD_TT | M176: TW | N176: SPD_TT | O176: % | P176: 專售店進獎台折2%(10台3%)(4K季級不季獎) | R176: 55UN8100PWA.ATT | T176: 0
A177: SPD_TT | B177: SPD_TT | C177: TT-NTSI-20211213-0018 | D177: HETV20211208-TV-Dealer SPD-Qty SIA SpecificModel-202203 | E177: 2022-03-01 | F177: 2022-03-31 | G177: NTSI | H177: 2022-03-01 | I177: 2022-03-31 | J177: 公司-電視-專售店進獎台折2%(10台3%)(4K季級不季獎)-03~03 | K177: SPD_TT | L177: SPD_TT | M177: TW | N177: SPD_TT | O177: % | P177: 專售店進獎台折2%(10台3%)(4K季級不季獎) | R177: 65NANO81WNA.ATT | T177: 0
A178: SPD_TT | B178: SPD_TT | C178: TT-NTSI-20211213-0018 | D178: HETV20211208-TV-Dealer SPD-Qty SIA SpecificModel-202203 | E178: 2022-03-01 | F178: 2022-03-31 | G178: NTSI | H178: 2022-03-01 | I178: 2022-03-31 | J178: 公司-電視-專售店進獎台折2%(10台3%)(4K季級不季獎)-03~03 | K178: SPD_TT | L178: SPD_TT | M178: TW | N178: SPD_TT | O178: % | P178: 專售店進獎台折2%(10台3%)(4K季級不季獎) | R178: 65NANO91WNA.ATT | T178: 0
A179: SPD_TT | B179: SPD_TT | C179: TT-NTSI-20211213-0018 | D179: HETV20211208-TV-Dealer SPD-Qty SIA SpecificModel-202203 | E179: 2022-03-01 | F179: 2022-03-31 | G179: NTSI | H179: 2022-03-01 | I179: 2022-03-31 | J179: 公司-電視-專售店進獎台折2%(10台3%)(4K季級不季獎)-03~03 | K179: SPD_TT | L179: SPD_TT | M179: TW | N179: SPD_TT | O179: % | P179: 專售店進獎台折2%(10台3%)(4K季級不季獎) | R179: 65NANO95WNA.ATT | T179: 0
A180: SPD_TT | B180: SPD_TT | C180: TT-NTSI-20211213-0018 | D180: HETV20211208-TV-Dealer SPD-Qty SIA SpecificModel-202203 | E180: 2022-03-01 | F180: 2022-03-31 | G180: NTSI | H180: 2022-03-01 | I180: 2022-03-31 | J180: 公司-電視-專售店進獎台折2%(10台3%)(4K季級不季獎)-03~03 | K180: SPD_TT | L180: SPD_TT | M180: TW | N180: SPD_TT | O180: % | P180: 專售店進獎台折2%(10台3%)(4K季級不季獎) | R180: 65UN8000PWA.ATT | T180: 0
A181: SPD_TT | B181: SPD_TT | C181: TT-NTSI-20211213-0018 | D181: HETV20211208-TV-Dealer SPD-Qty SIA SpecificModel-202203 | E181: 2022-03-01 | F181: 2022-03-31 | G181: NTSI | H181: 2022-03-01 | I181: 2022-03-31 | J181: 公司-電視-專售店進獎台折2%(10台3%)(4K季級不季獎)-03~03 | K181: SPD_TT | L181: SPD_TT | M181: TW | N181: SPD_TT | O181: % | P181: 專售店進獎台折2%(10台3%)(4K季級不季獎) | R181: 65UN8100PWA.ATT | T181: 0
A182: SPD_TT | B182: SPD_TT | C182: TT-NTSI-20211213-0018 | D182: HETV20211208-TV-Dealer SPD-Qty SIA SpecificModel-202203 | E182: 2022-03-01 | F182: 2022-03-31 | G182: NTSI | H182: 2022-03-01 | I182: 2022-03-31 | J182: 公司-電視-專售店進獎台折2%(10台3%)(4K季級不季獎)-03~03 | K182: SPD_TT | L182: SPD_TT | M182: TW | N182: SPD_TT | O182: % | P182: 專售店進獎台折2%(10台3%)(4K季級不季獎) | R182: 75NANO91WNA.ATT | T182: 0
A183: SPD_TT | B183: SPD_TT | C183: TT-NTSI-20211213-0018 | D183: HETV20211208-TV-Dealer SPD-Qty SIA SpecificModel-202203 | E183: 2022-03-01 | F183: 2022-03-31 | G183: NTSI | H183: 2022-03-01 | I183: 2022-03-31 | J183: 公司-電視-專售店進獎台折2%(10台3%)(4K季級不季獎)-03~03 | K183: SPD_TT | L183: SPD_TT | M183: TW | N183: SPD_TT | O183: % | P183: 專售店進獎台折2%(10台3%)(4K季級不季獎) | R183: 75NANO95WNA.ATT | T183: 0
A184: SPD_TT | B184: SPD_TT | C184: TT-NTSI-20211213-0018 | D184: HETV20211208-TV-Dealer SPD-Qty SIA SpecificModel-202203 | E184: 2022-03-01 | F184: 2022-03-31 | G184: NTSI | H184: 2022-03-01 | I184: 2022-03-31 | J184: 公司-電視-專售店進獎台折2%(10台3%)(4K季級不季獎)-03~03 | K184: SPD_TT | L184: SPD_TT | M184: TW | N184: SPD_TT | O184: % | P184: 專售店進獎台折2%(10台3%)(4K季級不季獎) | R184: 75UN8100PWB.ATT | T184: 0
A185: SPD_TT | B185: SPD_TT | C185: TT-NTSI-20211213-0018 | D185: HETV20211208-TV-Dealer SPD-Qty SIA SpecificModel-202203 | E185: 2022-03-01 | F185: 2022-03-31 | G185: NTSI | H185: 2022-03-01 | I185: 2022-03-31 | J185: 公司-電視-專售店進獎台折2%(10台3%)(4K季級不季獎)-03~03 | K185: SPD_TT | L185: SPD_TT | M185: TW | N185: SPD_TT | O185: % | P185: 專售店進獎台折2%(10台3%)(4K季級不季獎) | R185: 86NANO91WNA.ATT | T185: 0
A186: SPD_TT | B186: SPD_TT | C186: TT-NTSI-20211213-0018 | D186: HETV20211208-TV-Dealer SPD-Qty SIA SpecificModel-202203 | E186: 2022-03-01 | F186: 2022-03-31 | G186: NTSI | H186: 2022-03-01 | I186: 2022-03-31 | J186: 公司-電視-專售店進獎台折2%(10台3%)(4K季級不季獎)-03~03 | K186: SPD_TT | L186: SPD_TT | M186: TW | N186: SPD_TT | O186: % | P186: 專售店進獎台折2%(10台3%)(4K季級不季獎) | R186: OLED55CXPWA.ATT | T186: 0
A187: SPD_TT | B187: SPD_TT | C187: TT-NTSI-20211213-0018 | D187: HETV20211208-TV-Dealer SPD-Qty SIA SpecificModel-202203 | E187: 2022-03-01 | F187: 2022-03-31 | G187: NTSI | H187: 2022-03-01 | I187: 2022-03-31 | J187: 公司-電視-專售店進獎台折2%(10台3%)(4K季級不季獎)-03~03 | K187: SPD_TT | L187: SPD_TT | M187: TW | N187: SPD_TT | O187: % | P187: 專售店進獎台折2%(10台3%)(4K季級不季獎) | R187: OLED65CXPWA.ATT | T187: 0
A188: SPD_TT | B188: SPD_TT | C188: TT-NTSI-20211213-0018 | D188: HETV20211208-TV-Dealer SPD-Qty SIA SpecificModel-202203 | E188: 2022-03-01 | F188: 2022-03-31 | G188: NTSI | H188: 2022-03-01 | I188: 2022-03-31 | J188: 公司-電視-專售店進獎台折2%(10台3%)(4K季級不季獎)-03~03 | K188: SPD_TT | L188: SPD_TT | M188: TW | N188: SPD_TT | O188: % | P188: 專售店進獎台折2%(10台3%)(4K季級不季獎) | R188: OLED65GXPWA.ATT | T188: 0
A189: SPD_TT | B189: SPD_TT | C189: TT-NTSI-20211213-0018 | D189: HETV20211208-TV-Dealer SPD-Qty SIA SpecificModel-202203 | E189: 2022-03-01 | F189: 2022-03-31 | G189: NTSI | H189: 2022-03-01 | I189: 2022-03-31 | J189: 公司-電視-專售店進獎台折2%(10台3%)(4K季級不季獎)-03~03 | K189: SPD_TT | L189: SPD_TT | M189: TW | N189: SPD_TT | O189: % | P189: 專售店進獎台折2%(10台3%)(4K季級不季獎) | R189: OLED65WXPWA.ATT | T189: 0
A190: SPD_TT | B190: SPD_TT | C190: TT-NTSI-20211213-0018 | D190: HETV20211208-TV-Dealer SPD-Qty SIA SpecificModel-202203 | E190: 2022-03-01 | F190: 2022-03-31 | G190: NTSI | H190: 2022-03-01 | I190: 2022-03-31 | J190: 公司-電視-專售店進獎台折2%(10台3%)(4K季級不季獎)-03~03 | K190: SPD_TT | L190: SPD_TT | M190: TW | N190: SPD_TT | O190: % | P190: 專售店進獎台折2%(10台3%)(4K季級不季獎) | R190: OLED77CXPWA.ATT | T190: 0
A191: SPD_TT | B191: SPD_TT | C191: TT-NTSI-20211213-0018 | D191: HETV20211208-TV-Dealer SPD-Qty SIA SpecificModel-202203 | E191: 2022-03-01 | F191: 2022-03-31 | G191: NTSI | H191: 2022-03-01 | I191: 2022-03-31 | J191: 公司-電視-專售店進獎台折2%(10台3%)(4K季級不季獎)-03~03 | K191: SPD_TT | L191: SPD_TT | M191: TW | N191: SPD_TT | O191: % | P191: 專售店進獎台折2%(10台3%)(4K季級不季獎) | R191: OLED88ZXPWA.ATT | T191: 0
A192: SPD_TT | B192: SPD_TT | C192: TT-NTSI-20211213-0018 | D192: HETV20211208-TV-Dealer SPD-Qty SIA SpecificModel-202203 | E192: 2022-03-01 | F192: 2022-03-31 | G192: NTSI | H192: 2022-03-01 | I192: 2022-03-31 | J192: 公司-電視-專售店進獎台折2%(10台3%)(4K季級不季獎)-03~03 | K192: SPD_TT | L192: SPD_TT | M192: TW | N192: SPD_TT | O192: % | P192: 專售店進獎台折2%(10台3%)(4K季級不季獎) | R192: OLED48C1PSB.ATT | T192: 0
A193: SPD_TT | B193: SPD_TT | C193: TT-NTSI-20211213-0018 | D193: HETV20211208-TV-Dealer SPD-Qty SIA SpecificModel-202203 | E193: 2022-03-01 | F193: 2022-03-31 | G193: NTSI | H193: 2022-03-01 | I193: 2022-03-31 | J193: 公司-電視-專售店進獎台折2%(10台3%)(4K季級不季獎)-03~03 | K193: SPD_TT | L193: SPD_TT | M193: TW | N193: SPD_TT | O193: % | P193: 專售店進獎台折2%(10台3%)(4K季級不季獎) | R193: 65NANO91SPA.ATT | T193: 0
A194: =IFERROR(VLOOKUP(N194,多CODE,2,0),IF(RIGHT($B194,1)="H",LEFT($B194,11)&"B",IFERROR(VLOOKUP($B194,SHIP,3,0),$B194))) -> SPD_TT | B194: SPD_TT | C194: TT-NTSI-20211213-0018 | D194: HETV20211208-TV-Dealer SPD-Qty SIA SpecificModel-202203 | E194: 2022-03-01 | F194: 2022-03-31 | G194: =MID(C194,4,4) -> NTSI | H194: =IF(OR($G194="NTSI",$G194="TTSI"),$E194,LEFT($E194,4)&"/"&MID($E194,5,2)&"/"&RIGHT($E194,2)) -> 2022-03-01 | I194: =IF(OR($G194="NTSI",$G194="TTSI"),$F194,LEFT($F194,4)&"/"&MID($F194,5,2)&"/"&RIGHT($F194,2)) -> 2022-03-31 | J194: 公司-電視-專售店進獎台折2%(10台3%)(4K季級不季獎)-03~03 | K194: SPD_TT | L194: SPD_TT | M194: TW | N194: SPD_TT | O194: % | P194: 專售店進獎台折2%(10台3%)(4K季級不季獎) | R194: 55NANO91SPA.ATT | T194: 0
A195: SPD_TT | B195: SPD_TT | C195: TT-NTSI-20211213-0018 | D195: HETV20211208-TV-Dealer SPD-Qty SIA SpecificModel-202203 | E195: 2022-03-01 | F195: 2022-03-31 | G195: NTSI | H195: 2022-03-01 | I195: 2022-03-31 | J195: 公司-電視-專售店進獎台折2%(10台3%)(4K季級不季獎)-03~03 | K195: SPD_TT | L195: SPD_TT | M195: TW | N195: SPD_TT | O195: % | P195: 專售店進獎台折2%(10台3%)(4K季級不季獎) | R195: 65NANO86SPA.ATT | T195: 0
A196: SPD_TT | B196: SPD_TT | C196: TT-NTSI-20211213-0018 | D196: HETV20211208-TV-Dealer SPD-Qty SIA SpecificModel-202203 | E196: 2022-03-01 | F196: 2022-03-31 | G196: NTSI | H196: 2022-03-01 | I196: 2022-03-31 | J196: 公司-電視-專售店進獎台折2%(10台3%)(4K季級不季獎)-03~03 | K196: SPD_TT | L196: SPD_TT | M196: TW | N196: SPD_TT | O196: % | P196: 專售店進獎台折2%(10台3%)(4K季級不季獎) | R196: 55NANO86SPA.ATT | T196: 0
A197: SPD_TT | B197: SPD_TT | C197: TT-NTSI-20211213-0018 | D197: HETV20211208-TV-Dealer SPD-Qty SIA SpecificModel-202203 | E197: 2022-03-01 | F197: 2022-03-31 | G197: NTSI | H197: 2022-03-01 | I197: 2022-03-31 | J197: 公司-電視-專售店進獎台折2%(10台3%)(4K季級不季獎)-03~03 | K197: SPD_TT | L197: SPD_TT | M197: TW | N197: SPD_TT | O197: % | P197: 專售店進獎台折2%(10台3%)(4K季級不季獎) | R197: 55NANO76SPA.ATT | T197: 0
A198: SPD_TT | B198: SPD_TT | C198: TT-NTSI-20211213-0018 | D198: HETV20211208-TV-Dealer SPD-Qty SIA SpecificModel-202203 | E198: 2022-03-01 | F198: 2022-03-31 | G198: NTSI | H198: 2022-03-01 | I198: 2022-03-31 | J198: 公司-電視-專售店進獎台折2%(10台3%)(4K季級不季獎)-03~03 | K198: SPD_TT | L198: SPD_TT | M198: TW | N198: SPD_TT | O198: % | P198: 專售店進獎台折2%(10台3%)(4K季級不季獎) | R198: OLED65G1PSA.ATT | T198: 0
A199: SPD_TT | B199: SPD_TT | C199: TT-NTSI-20211213-0018 | D199: HETV20211208-TV-Dealer SPD-Qty SIA SpecificModel-202203 | E199: 2022-03-01 | F199: 2022-03-31 | G199: NTSI | H199: 2022-03-01 | I199: 2022-03-31 | J199: 公司-電視-專售店進獎台折2%(10台3%)(4K季級不季獎)-03~03 | K199: SPD_TT | L199: SPD_TT | M199: TW | N199: SPD_TT | O199: % | P199: 專售店進獎台折2%(10台3%)(4K季級不季獎) | R199: OLED55C1PSB.ATT | T199: 0
A200: SPD_TT | B200: SPD_TT | C200: TT-NTSI-20211213-0018 | D200: HETV20211208-TV-Dealer SPD-Qty SIA SpecificModel-202203 | E200: 2022-03-01 | F200: 2022-03-31 | G200: NTSI | H200: 2022-03-01 | I200: 2022-03-31 | J200: 公司-電視-專售店進獎台折2%(10台3%)(4K季級不季獎)-03~03 | K200: SPD_TT | L200: SPD_TT | M200: TW | N200: SPD_TT | O200: % | P200: 專售店進獎台折2%(10台3%)(4K季級不季獎) | R200: 75QNED96SPA.ATT | T200: 0
... 4300 more rows
